Cogmind - Beta 14 @@@ ROGUE MODE // 2024.09.06 @ 04:09:00 Player: Some Pennies Result: Destroyed by H-81 Overseer with Heavy Linear Accelerator Performance ------------- Evolutions (8) 4000 Regions Visited (29) 5800 Robots Destroyed (599) 2995 Value Destroyed (31191) 31191 Prototype IDs (122) 2440 Alien Tech Used (5) 1000 Bonus (27718) 27718 TOTAL SCORE: 75144 Bonus ------- Triggered High Security 1000 High Alert Combat Kills 13485 Follower Combat Kills 1592 Network Hubs Disabled 400 Met Data Miner 300 Met Imprinter 300 Destroyed Z-Imprinter 1000 Triggered Deep Caves Wall 500 Exposed GOLEM Chamber 500 Met Warlord at Base 500 MAIN.C Attacked Warlord 500 Warlord Defense Kills 1592 Built Enhanced Grunts 300 Met R17 at Cetus 500 Used Core Reset Matrix 3000 Hacked Protovariant 500 Met R17 at Research 2000 Scanned by Researcher 1000 Pursued by Intercept 500 Friendly Fire -1751 Cogmind --------- Core Integrity 0/1450 Matter 246/300 Energy 1100/1100 System Corruption 1% Temperature Cool (0) Movement Core (50) Location -2/Section 7 Parts ------- > --- POWER (3) -------- (None) > --- PROPULSION (6) --- (None) > --- UTILITY (13) ----- Assembled Biocell Array Transport Network Coupler Advanced Targeting Computer Experimental Core Analyzer Improved Armor Integrity Analyzer Graphene Brace Improved System Guard Advanced Corruption Screen > --- WEAPON (2) ------- (None) > --- INVENTORY (5) ---- Surveybot 24 Chip Perforator Core Stripper Peak State ------------ > --- POWER ------------ Improved Quantum Reactor Improved Quantum Reactor Improved Quantum Reactor > --- PROPULSION ------- Enhanced Armored Heavy Treads Advanced Heavy Siege Treads High-density Centrium Heavy Treads > --- UTILITY ---------- Huge Storage Unit Experimental Energy Well Assembled Biocell Array Experimental Core Analyzer Improved Armor Integrity Analyzer Advanced Transmission Jammer Centrium Light Armor Plating Centrium Heavy Armor Plating Graphene Brace Experimental Shield Generator Hacking Suite Advanced Dynamic Insulation System > --- WEAPON ----------- Sigix Broadsword > --- INVENTORY -------- Improved Quantum Reactor Advanced Cooling System Experimental Energy Well Experimental Energy Well Improved Matter Compressor Surveybot 24 Chip Advanced Kinecellerator Zionite Weapon Casing Experimental Shock Absorption System Experimental EM Disruption Field Potential Cannon Hypervelocity Multirail Perforator Omega Cannon Neutron Missile Launcher Multitool Core Stripper [Rating: 232] Favorites ----------- Power Assembled Flux Generator Engine Subdweller Power Source Power Core Meta Core Reactor Assembled Flux Generator Propulsion Assembled Alloy Leg Treads Light Treads Leg Assembled Alloy Leg Wheel Subdweller Monowheel Hover Unit Zionite Glidesys II Flight Unit Improved VTOL Module Utility Huge Storage Unit Device GOLEM Unit Storage Huge Storage Unit Processor Core Analyzer Hackware Improved Hacking Suite Protection Assembled Alloy Armor Weapon Assembled Focal Cannon Energy Gun Advanced Beam Rifle Energy Cannon Assembled Focal Cannon Ballistic Gun Hypervelocity Multirail Ballistic Cannon Perforator Launcher Advanced EMP Blaster Special Weapon Multitool Impact Weapon Maul Slashing Weapon Sigix Broadsword Special Melee Weapon Improved Datajack Build | -11 -10 -10 -8 -7 -7 -7 -7 -6 -6 -6 -6 -6 -6 -5 -5 -5 -5 -5 -5 -4 -4 -4 -4 -3 -3 -3 -2 -2 -2 ------- Run | Yrd Mat Sub Mat Fac Low Low Dat Pro Fac Low Low Zio Dee Pro Fac Ext Cet Arc Hub Fac Upp Upp War Pro Res Tes Res Qua Sec Slots Evolved 16 | . . . 4 2 . . . . 2 . . . . . 2 . . . . 2 . . . . 2 . 2 . . Power 2 | . . . . . . . . . 1 . . . . . . . . . . 1 . . . . . . . . . Propulsion 4 | . . . 2 . . . . . . . . . . . . . . . . . . . . . 2 . . . . Utility 10 | . . . 2 2 . . . . 1 . . . . . 2 . . . . 1 . . . . . . 2 . . Weapon . | . . . . . . . . . . . . . . . . . . . . . . . . . . . . . . Parts Attached 573 | 7 6 33 67 31 3 . . . 16 1 . 7 62 5 24 14 6 12 23 32 3 4 9 13 2 51 72 35 35 Power 47 | 1 1 3 3 3 . . . . . . . 2 2 . . . . . . 4 . . . 1 1 . 16 5 5 Engine 8 | 1 1 3 3 . . . . . . . . . . . . . . . . . . . . . . . . . . Core 7 | . . . . 3 . . . . . . . 2 1 . . . . . . . . . . . . . . . 1 Reactor 32 | . . . . . . . . . . . . . 1 . . . . . . 4 . . . 1 1 . 16 5 4 Propulsion 71 | 2 . 4 16 7 . . . . 1 . . . 9 . 2 1 1 4 1 2 . . . 1 1 3 3 8 5 Treads 49 | 2 . 4 12 . . . . . . . . . . . 2 1 1 4 1 2 . . . 1 1 3 3 8 4 Leg 4 | . . . 1 . . . . . . . . . 3 . . . . . . . . . . . . . . . . Wheel 3 | . . . 2 . . . . . . . . . . . . . . . . . . . . . . . . . 1 Hover 6 | . . . . . . . . . . . . . 6 . . . . . . . . . . . . . . . . Flight 9 | . . . 1 7 . . . . 1 . . . . . . . . . . . . . . . . . . . . Utility 305 | 2 3 5 11 11 1 . . . 9 . . 2 36 5 20 12 5 8 21 22 3 3 7 10 . 39 47 14 9 Device 119 | 1 . . 5 3 . . . . 1 . . . 11 . 6 2 2 4 8 8 1 . 2 6 . 29 22 6 2 Storage 20 | 1 1 . . 1 . . . . . . . 2 4 . 1 . . 1 . 2 . . . 1 . 1 1 1 3 Processor 18 | . . . . . . . . . 2 . . . . . 1 1 . . . . . . 1 . . . 9 . 4 Hackware 20 | . . . 1 5 . . . . 3 . . . . . 3 . . . 1 2 . . . . . 1 4 . . Protection 128 | . 2 5 5 2 1 . . . 3 . . . 21 5 9 9 3 3 12 10 2 3 4 3 . 8 11 7 . Artifact . | . . . . . . . . . . . . . . . . . . . . . . . . . . . . . . Weapon 150 | 2 2 21 37 10 2 . . . 6 1 . 3 15 . 2 1 . . 1 4 . 1 2 1 . 9 6 8 16 Energy Gun 20 | 1 . 3 9 . . . . . . . . . 3 . . . . . . . . . . . . 1 . . 3 Energy Cannon 38 | . . 7 5 1 2 . . . . 1 . 2 8 . . . . . . 2 . . 1 1 . . 2 3 3 Ballistic Gun 24 | 1 2 4 7 . . . . . . . . . 1 . . . . . . . . . . . . 6 3 . . Ballistic Cannon 8 | . . . 1 . . . . . . . . . . . . . . . . . . . . . . . . 2 5 Launcher 23 | . . . 9 . . . . . . . . . 2 . 2 1 . . 1 2 . 1 1 . . 1 1 . 2 Special Weapon 14 | . . . 1 6 . . . . 5 . . 1 . . . . . . . . . . . . . 1 . . . Impact Weapon 15 | . . 7 2 3 . . . . . . . . 1 . . . . . . . . . . . . . . 1 1 Slashing Weapon 4 | . . . . . . . . . . . . . . . . . . . . . . . . . . . . 2 2 Piercing Weapon . | . . . . . . . . . . . . . . . . . . . . . . . . . . . . . . Special Melee Weapon 4 | . . . 3 . . . . . 1 . . . . . . . . . . . . . . . . . . . . Unidentified Prototypes 69 | . . . 5 1 1 . . . 1 . . 1 14 . 1 . 2 . 3 2 . . 3 1 . 11 11 7 5 Corrupted Parts 1 | . . . . . . . . . . . . . . . . . . 1 . . . . . . . . . . . System Corruption 7 | . . . . . . . . . . . . . . . . . . 7 . . . . . . . . . . . Parts Lost 83 | . 1 5 9 . . . . . . . 1 . 5 2 3 3 . . 1 5 . . 3 1 . 4 6 12 22 Power 13 | . . 1 1 . . . . . . . . . 1 . . . . . . 2 . . . . . . . 3 5 Propulsion 16 | . . 2 4 . . . . . . . . . 1 . . . . . . 1 . . . . . . . 1 7 Utility 46 | . 1 1 3 . . . . . . . 1 . 3 2 3 3 . . 1 2 . . 2 1 . 4 6 8 5 Weapon 8 | . . 1 1 . . . . . . . . . . . . . . . . . . . 1 . . . . . 5 Highest Loss Streak 8 | . 1 2 4 . . . . . . . 1 . 2 2 1 1 . . 1 2 . . 3 1 . 2 3 6 8 To Critical Strikes 2 | . . 1 . . . . . . . . . . . . . 1 . . . . . . . . . . . . . Average Slot Usage (%) 85 | . 99 95 89 94 92 88 88 88 85 89 85 88 89 86 84 87 83 75 76 74 83 83 79 84 80 81 83 79 69 Engine 2 | . 14 9 8 . . . . . . . . . . . . . . . . . . . . . . . . . . Reactor 5 | . . . . . . . . . . . . . 5 5 5 5 5 4 5 9 10 10 10 9 9 9 10 11 10 Treads 11 | . 28 28 29 . . . . . . . . . . . 2 11 6 7 11 9 5 5 5 5 8 11 12 11 11 Leg 6 | . . . 1 . . . . . . . . . 18 25 19 11 11 6 . . 9 10 10 9 9 3 . . . Flight 1 | . . . . 30 30 29 29 29 26 26 26 26 3 . . . . . . . . . . . . . . . . Device 11 | . 2 . 9 5 5 5 5 5 2 5 5 5 8 6 7 12 11 19 21 16 13 15 12 19 18 18 20 16 11 Storage 10 | . 14 14 9 6 5 5 5 5 5 5 5 5 9 12 11 11 11 9 11 10 10 10 10 10 9 9 8 8 10 Processor 2 | . . . . . . . . . 3 5 5 5 5 6 5 7 5 1 . . . . 2 . . . 3 8 18 Hackware 5 | . . . 2 27 24 23 23 23 27 21 17 15 2 . 9 5 . . 1 4 10 10 10 10 9 10 9 2 . Protection 11 | . 11 14 9 2 5 5 5 5 4 10 10 10 14 17 11 12 21 14 14 13 15 12 9 9 9 9 8 11 1 Energy Gun 1 | . 4 2 8 . . . . . . . . . . . . . . . . . . . . . . . . . . Energy Cannon 8 | . . 12 2 . . . . . . . . 1 10 12 10 10 10 9 10 10 10 9 9 9 9 5 4 2 . Ballistic Gun 3 | . 23 10 4 . . . . . . . . . . . . . . . . . . . . . . 2 3 2 . Impact Weapon 1 | . . 2 . 6 5 5 5 5 5 5 5 5 2 . . . . . . . . . . . . . . . . Peak Build Rating 232 | 7 14 18 43 65 65 60 60 60 75 78 73 81 146 136 141 143 159 168 168 179 172 175 171 171 185 190 213 232 209 Average Rating 117 | 5 11 15 36 55 60 60 60 60 68 73 69 71 123 129 134 126 152 151 161 162 166 169 168 167 183 182 200 209 182 On Entrance 108 | . 7 14 16 40 60 60 60 60 60 73 73 68 81 131 130 124 130 159 163 157 145 170 169 166 169 185 186 213 188 Naked Turns . | . . . . . . . . . . . . . . . . . . . . . . . . . . . . . . Heaviest Build 208 | 14 94 105 129 25 25 25 25 25 27 27 27 44 161 161 180 186 186 185 182 204 190 195 195 198 187 206 208 195 179 Greatest Support 260 | 40 40 40 84 26 26 26 26 26 27 27 27 27 108 108 84 60 60 160 160 160 60 80 60 70 140 210 235 260 255 Greatest Overweight (x) 58 | . 2 2 6 1 . . . . . . . 14 1 2 2 3 5 58 1 2 5 3 3 6 3 1 1 1 8 Average Overweight (x) . | . 1 2 2 . . . . . . . . . . 1 1 2 3 2 1 1 3 2 2 2 1 . . . . Largest Inventory Capacity 25 | 8 25 25 25 25 10 10 10 10 10 10 10 10 25 25 25 25 25 25 25 25 25 25 25 25 25 25 25 25 25 Average Capacity 23 | 7 21 25 25 10 10 10 10 10 10 10 10 10 19 25 25 25 25 19 25 25 25 25 25 24 25 25 25 25 24 Most Carried 25 | 6 25 25 25 24 10 10 10 10 10 10 10 10 25 25 25 25 25 25 25 25 25 25 25 25 25 25 25 25 25 Average Carried 22 | 3 17 24 24 10 9 10 10 10 9 9 10 9 17 23 24 23 24 18 24 24 24 24 24 23 24 24 24 23 21 Final Capacity 25 | 8 25 25 25 10 10 10 10 10 10 10 10 10 25 25 25 25 25 25 25 25 25 25 25 25 25 25 25 25 5 Final Carried 25 | 6 25 24 24 10 10 10 10 10 10 10 10 9 25 23 23 25 25 25 25 25 25 25 23 25 25 25 25 25 5 Class Distribution -------------------- 20% | Scavenger-Golem 20% | Mutant 17% | Scavenger-Mutant 12% | Golem 10% | Hacker-Mutant 8% | Hacker-Golem 4% | Commander-Golem 4% | Hacker-Sprinter Dominant Class ---------------- Mutant | -10/Materials Mutant | -10/Subcaves Scavenger-Mutant | -8/Materials Hacker-Sprinter | -7/Factory Hacker-Sprinter | -7/Lower Caves Hacker-Sprinter | -7/Lower Caves Hacker-Sprinter | -7/Data Miner Hacker-Sprinter | -6/Proximity Caves Wizard-Sprinter | -6/Factory Hacker-Sprinter | -6/Lower Caves Hacker-Sprinter | -6/Lower Caves Hacker-Sprinter | -6/Zion Golem | -6/Deep Caves Golem | -5/Proximity Caves Hacker-Golem | -5/Factory Scavenger-Golem | -5/Extension Scavenger-Golem | -5/Cetus Commander-Golem | -5/Archives Scavenger-Golem | -5/Hub_04(d) Scavenger-Golem | -4/Factory Scavenger-Golem | -4/Upper Caves Scavenger-Golem | -4/Upper Caves Hacker-Golem | -4/Warlord Scavenger-Golem | -3/Proximity Caves Hacker-Golem | -3/Research Hacker-Mutant | -3/Testing Hacker-Mutant | -2/Research Scavenger-Mutant | -2/Quarantine Scavenger-Mutant | -2/Section 7 Resources | -11 -10 -10 -8 -7 -7 -7 -7 -6 -6 -6 -6 -6 -6 -5 -5 -5 -5 -5 -5 -4 -4 -4 -4 -3 -3 -3 -2 -2 -2 ----------- Run | Yrd Mat Sub Mat Fac Low Low Dat Pro Fac Low Low Zio Dee Pro Fac Ext Cet Arc Hub Fac Upp Upp War Pro Res Tes Res Qua Sec Matter Collected 10990 | 294 275 701 1183 400 20 . . 20 180 40 . 20 757 25 319 155 155 148 384 509 208 209 183 308 10 915 1286 632 1654 Remotely . | . . . . . . . . . . . . . . . . . . . . . . . . . . . . . . Salvage Created 33305 | 131 527 740 2781 388 . . . 114 364 . . . 1787 371 2950 752 299 220 3105 3675 157 676 427 1234 116 3948 2634 4003 1906 Parts 1483 | 10 39 42 153 7 . . . . 4 . . . 47 14 137 35 14 21 151 149 11 31 9 51 5 196 141 144 72 Haulers Intercepted 23 | . 2 . 5 5 . . . . 3 . . . . . 1 . . . 2 2 . . . 1 . 1 . . 1 Recyclers Shooed 15 | . 1 . 2 . . . . . . . . . . . 2 1 . . . 6 . . . . . 1 . 1 1 Parts Field Recycled . | . . . . . . . . . . . . . . . . . . . . . . . . . . . . . . Retrieved Matter . | . . . . . . . . . . . . . . . . . . . . . . . . . . . . . . Parts Self-Destructed 129 | . . 17 . . . . . . . . . . . 14 . . . . . . 17 30 . 51 . . . . . Prevented . | . . . . . . . . . . . . . . . . . . . . . . . . . . . . . . Kills | -11 -10 -10 -8 -7 -7 -7 -7 -6 -6 -6 -6 -6 -6 -5 -5 -5 -5 -5 -5 -4 -4 -4 -4 -3 -3 -3 -2 -2 -2 ------- Run | Yrd Mat Sub Mat Fac Low Low Dat Pro Fac Low Low Zio Dee Pro Fac Ext Cet Arc Hub Fac Upp Upp War Pro Res Tes Res Qua Sec Combat Hostiles Destroyed 504 | . 12 17 49 1 . . . . . . . . 53 7 41 13 3 1 43 46 1 11 11 18 2 48 45 60 22 Melee 5 | . . . . . . . . . . . . . 2 . . . . . . . . . . . . . . 2 1 Guns 99 | . 12 7 22 . . . . . . . . . . . . . . . . . . . . . . 20 21 17 . Cannons 263 | . . 9 5 . . . . . . . . . 13 7 24 10 3 1 35 41 1 9 2 18 2 25 21 19 18 AOE 124 | . . . 22 . . . . . . . . . 32 . 17 3 . . 8 4 . 2 9 . . 3 3 20 1 Classes Destroyed 34 | 2 6 3 6 . . . . . . . . . 4 1 2 . . . 2 1 . . 1 . . 3 2 1 . Worker 22 | . 1 . 2 1 . . . . 1 . . . . . 5 . . . 4 2 . . . . . 4 . 1 1 Builder 24 | . . . 5 . . . . . 1 . . . . . 4 . . . 4 . . . . . . 5 . 4 1 Tunneler 2 | 2 . . . . . . . . . . . . . . . . . . . . . . . . . . . . . Hauler 23 | . 2 . 5 5 . . . . 3 . . . . . 1 . . . 2 2 . . . 1 . 1 . . 1 Recycler 28 | 1 . . 6 2 . . . . . . . . . . 8 1 . . 1 3 . . . . . 2 . . 4 Carrier 3 | . . . . . . . . . . . . . . . . . . . . . . . . . . 3 . . . Mechanic 5 | . . . 1 . . . . . . . . . . . . . . . 1 1 . . . . . . . 1 1 Operator 11 | . 1 . 3 . . . . . . . . . . . . . . 4 . . . . . . 1 . 1 1 . Drone 1 | . . . . . . . . . . . . . . . . . . . 1 . . . . . . . . . . Watcher 24 | . 2 . 2 1 . . . . 2 . . . . . 2 1 2 . 1 6 . . . . . 2 1 1 1 Swarmer 85 | . 5 . 4 1 . . . . . . . . . 2 14 6 . . . 9 . 1 . 4 2 5 23 5 4 Cutter 2 | . . . 2 . . . . . . . . . . . . . . . . . . . . . . . . . . Saboteur 4 | . . . . . . . . . . . . . . . . . . . . . . . . . . 2 . 2 . Grunt 156 | . 7 1 32 . . . . . . . . . . 3 13 3 . . 11 19 . 2 3 11 . 16 3 24 8 Brawler 26 | . . . 1 . . . . . . . . . . . . 1 . . 2 5 . . 2 . . 4 1 10 . Duelist 4 | . . . . . . . . . . . . . . . . . . . . 1 . . 1 . . 1 . 1 . Protector 9 | . . . 1 . . . . . . . . . . . . . . . 2 . . . 1 . . 2 . 3 . Researcher 5 | . . . . . . . . . . . . . . . . . . . . . . . . . . 1 . . 4 Sentry 36 | . . 1 8 . . . . . . . . . . 1 3 2 . 1 7 . . 1 . 1 . . 7 3 1 Demolisher 3 | . . . . . . . . . . . . . . . . . . . . . . . . . . . 3 . . Specialist 6 | . . . . . . . . . . . . . . . . . . . 2 . . . 1 . . . . 3 . Hunter 29 | . . . . . . . . . . . . . . . 6 . . . 2 6 . 2 . . . 4 2 3 4 Programmer 44 | . . . . . . . . . . . . . . . 5 . . . 8 5 . 4 2 2 . 13 . 3 2 Heavy 2 | . . . 1 . . . . . . . . . . . . . . . 1 . . . . . . . . . . Behemoth 7 | . . . . . . . . . . . . . . 1 . 1 . . 1 1 1 1 . . . . 1 . . Cetus Guard 3 | . . . . . . . . . . . . . . . . . 3 . . . . . . . . . . . . Enhanced Grunt 2 | . . . . . . . . . . . . . 1 . . . . . 1 . . . . . . . . . . Lightning 6 | . . . . . . . . . . . . . . . . . . . 6 . . . . . . . . . . Tracker 1 | . . . . . . . . . . . . . . . . . . . . . . . . . . . . . 1 Combat Programmer 2 | . . . . . . . . . . . . . . . . . . . . . . . . . . . . . 2 Investigator 1 | . . . . . . . . . . . . . . . . . . . . . . . . . . . . 1 . Striker 6 | . . . . . . . . . . . . . . . . . . . . . . . 1 . . . 3 2 . Executioner 2 | . . . . . . . . . . . . . . . . . . . . . . . . . . . 2 . . Fortress 1 | . . . . . . . . . . . . . . . . . . . . . . . . . . . . 1 . Protovariant L 1 | . . . . . . . . . . . . . . . . . . . . . . . . . . 1 . . . Artisan 1 | . . 1 . . . . . . . . . . . . . . . . . . . . . . . . . . . Subdweller 15 | . . 15 . . . . . . . . . . . . . . . . . . . . . . . . . . . Z-Technician 4 | . . . . . . . . . . . . . 4 . . . . . . . . . . . . . . . . Z-Light 6 | . . . . . . . . . . . . . 6 . . . . . . . . . . . . . . . . Assembler 2 | . . . . . . . . . . . . . 2 . . . . . . . . . . . . . . . . Assembled 39 | . . . . . . . . . . . . . 39 . . . . . . . . . . . . . . . . Golem 7 | . . . . . . . . . . . . . 7 . . . . . . . . . . . . . . . . Surgeon 1 | . . . . . . . . . . . . . . . . . . . . . . . 1 . . . . . . Best Kill Streak 41 | 1 3 2 11 3 . . . . 3 . . . 41 3 16 3 3 1 10 11 1 4 12 4 2 18 12 15 7 Combat Bots Only 39 | . 2 2 10 1 . . . . . . . . 39 3 13 3 2 1 10 9 1 4 11 4 2 8 12 13 6 Max Kills in Single Turn 17 | 1 2 1 3 1 . . . . 1 . . . 17 2 7 3 1 1 3 3 1 1 6 1 1 6 2 4 2 Gunslinging 1 | . 1 . . . . . . . . . . . . . . . . . . . . . . . . . . . . Exploded 17 | . . . 2 . . . . . . . . . 17 . 6 3 . . 3 3 . 1 6 . . 1 2 4 1 Melee 1 | . . . . . . . . . . . . . 1 . . . . . . . . . . . . . . 1 1 Uniques/NPCs Destroyed 2 | . . . . . . . . . . . . . 1 . . . 1 . . . . . . . . . . . . Z-Imprinter (-6/Deep Caves) A7 (-5/Cetus) Combat | -11 -10 -10 -8 -7 -7 -7 -7 -6 -6 -6 -6 -6 -6 -5 -5 -5 -5 -5 -5 -4 -4 -4 -4 -3 -3 -3 -2 -2 -2 -------- Run | Yrd Mat Sub Mat Fac Low Low Dat Pro Fac Low Low Zio Dee Pro Fac Ext Cet Arc Hub Fac Upp Upp War Pro Res Tes Res Qua Sec Hostile Shots Fired 3203 | . 64 71 248 21 . 7 . 5 7 6 2 . 87 36 198 21 8 . 354 386 12 59 129 107 . 321 250 440 364 Missed 914 | . 21 18 69 12 . 3 . 3 4 4 1 . 42 9 58 3 3 . 101 104 3 24 35 31 . 107 80 96 83 Damage Taken 42026 | . 475 1219 3300 96 . 56 . 27 62 42 26 . 1064 509 2362 523 79 . 4593 4642 194 683 2349 1153 105 2979 2812 6473 6203 Core 3218 | . 21 119 373 6 . . . . . 14 . . 79 . 105 6 . . 270 256 . 51 175 72 36 145 179 457 854 Absorbed by Shields 5410 | . . . . . . . . . . . . . . . . 126 32 . . . . . . . . 853 2245 2154 . Reduced by Siege Mode 1575 | . . . . . . . . . . . . . . . . . . . 196 339 . 20 37 38 . 235 278 291 141 Redirected to Shielding 563 | . . . . . . . . . . 6 . . 169 . . . . . . 116 16 50 . . . 69 . 137 . Ignored by Resistances 7859 | . . 29 . . . . . . . . . . 110 101 396 79 23 . 2377 1447 39 141 475 449 21 1786 10 376 . Regen/Repaired (Parts) 1793 | . 81 . 669 229 . . . . 151 . . . . . . 164 . . . . . . 60 . 75 . . 104 260 Core Remaining (%) 70 | 100 . 44 32 . . . . 99 . . . . . 89 . . . . 61 . . . . 51 . 86 . . . Volleys Fired 1283 | 8 51 67 173 . 2 . . . . 3 . . 73 17 90 31 16 19 138 128 7 24 9 37 10 144 111 77 48 Largest 2 | 2 2 2 2 . 1 . . . . 1 . . 2 2 2 2 2 2 2 2 2 2 2 2 2 2 2 2 2 Hottest 200 | 60 60 160 160 . 90 . . . . 90 . . 144 50 50 50 50 50 50 115 50 74 50 55 50 75 75 200 200 Shots Fired 2173 | 16 99 116 287 . 2 . . . . 3 . . 136 34 150 51 34 30 218 237 14 45 11 74 11 243 188 123 51 Gun 591 | 16 99 64 222 . . . . . . . . . 10 . . . . . . . . . . . . 56 76 45 3 Cannon 1510 | . . 52 33 . 2 . . . . 3 . . 118 34 145 50 34 30 211 234 14 41 6 74 11 187 110 78 43 Launcher 72 | . . . 32 . . . . . . . . . 8 . 5 1 . . 7 3 . 4 5 . . . 2 . 5 Special . | . . . . . . . . . . . . . . . . . . . . . . . . . . . . . . Kinetic 467 | 8 74 60 103 . . . . . . . . . . . . . . . . . . . . . . 56 76 53 37 Thermal 1541 | 8 25 54 113 . 2 . . . . 3 . . 81 34 145 50 34 30 211 234 14 41 6 74 11 187 110 70 4 Explosive 67 | . . . 27 . . . . . . . . . 8 . 5 1 . . 7 3 . 4 5 . . . 2 . 5 Electromagnetic 98 | . . 2 44 . . . . . . . . . 47 . . . . . . . . . . . . . . . 5 Robot Hit Streak 49 | 3 8 21 12 . . . . . . . . . 14 21 23 11 16 17 45 49 4 14 5 13 12 39 22 36 12 Robot Miss Streak 7 | 2 3 3 5 . . . . . . . . . 7 2 3 1 3 3 3 3 1 1 1 4 . 4 5 6 7 Penetration Max 1 | . . . . . . . . . . . . . . . . . . . . . . . . . . 1 . 1 1 Secondary Targets 5 | . 3 . 2 . . . . . . . . . . . . . . . . . . . . . . . . . . Max Gunslinging Chain 1 | . 1 . 1 . . . . . . . . . . . . . . . . . . . . . . . . . . Shots Hit Robots 1534 | 9 63 82 186 10 . . . 2 9 . . 2 85 23 99 37 28 18 171 188 9 31 8 51 8 154 113 101 47 Core Hits 1092 | 4 27 24 134 . . . . . 1 . . . 106 11 81 23 14 6 108 101 4 22 26 32 2 104 90 121 51 Critical Kills 83 | . . 1 2 . . . . . . . . . 3 . . . . . . . . . . . . 22 21 24 10 Critical Parts Destroyed 81 | . . . 2 3 . . . . 2 . . . 1 . . . . . . . . . . . . 19 21 30 3 Critical Strikes 194 | . . 2 10 3 . . . . 2 . . . 4 . . . . . . . . . . . . 46 45 61 21 Burn 5 | . . . 5 . . . . . . . . . . . . . . . . . . . . . . . . . . Meltdown 4 | . . 1 . . . . . . . . . . 1 . . . . . . . . . . . . . . 1 1 Destroy 166 | . . 1 3 . . . . . . . . . . . . . . . . . . . . . . 46 45 59 12 Blast 8 | . . . 1 . . . . . . . . . . . . . . . . . . . . . . . . . 7 Smash 9 | . . . 1 3 . . . . 2 . . . 3 . . . . . . . . . . . . . . . . Sever 2 | . . . . . . . . . . . . . . . . . . . . . . . . . . . . 1 1 Melee Attacks 180 | . . 77 1 28 3 . . 2 17 2 2 3 13 . . . . . . . . . . . . . . 16 16 Kinetic 6 | . . . . . . . . . . . . . . . . . . . . . . . . . . . . 2 4 Impact 146 | . . 77 1 28 3 . . 2 17 2 2 1 13 . . . . . . . . . . . . . . . . Slashing 26 | . . . . . . . . . . . . . . . . . . . . . . . . . . . . 14 12 Piercing . | . . . . . . . . . . . . . . . . . . . . . . . . . . . . . . Sneak Attacks 17 | . . . 1 8 . . . . 4 . . 2 . . . . . . . . . . . . . . . . 2 Combat Hostiles . | . . . . . . . . . . . . . . . . . . . . . . . . . . . . . . Follow-up Attacks . | . . . . . . . . . . . . . . . . . . . . . . . . . . . . . . Damage Inflicted 83842 | 121 861 1685 6781 900 . . . 222 563 . . . 5844 1162 7323 2115 1319 803 9789 9543 397 1775 2584 2252 388 7486 3678 11278 4973 Guns 6161 | 121 851 648 2881 . . . . . . . . . 34 . . . . . . . . . . . . 541 581 477 27 Cannons 49965 | . . 1037 650 . . . . . . . . . 2464 1162 4414 1721 1319 803 7540 8760 397 1563 158 2252 388 5257 2704 4121 3255 Explosions 24175 | . . . 3124 . . . . . . . . . 3015 . 2892 386 . . 2137 770 . 212 2414 . . 1675 393 6175 982 Melee 3318 | . . . 88 900 . . . 222 563 . . . 331 . . . . . . . . . . . . . . 505 709 Ramming 223 | . 10 . 38 . . . . . . . . . . . 17 8 . . 112 13 . . 12 . . 13 . . . Kinetic 7592 | 63 699 608 1245 . . . . . . . . . . . . . . . . . . . . . . 541 581 645 3210 Thermal 54660 | 58 152 1055 2080 . . . . . . . . . 1728 1162 5020 1721 1319 803 7540 8806 397 1563 620 2252 388 5257 2704 9643 392 Explosive 15997 | . . . 2341 . . . . . . . . . 3015 . 2226 386 . . 1752 724 . 212 1922 . . 1675 393 520 831 Electromagnetic 2316 | . . 22 989 . . . . . . . . . 770 . 60 . . . 385 . . . 30 . . . . . 60 Impact 2104 | . . . 88 900 . . . 222 563 . . . 331 . . . . . . . . . . . . . . . . Slashing 950 | . . . . . . . . . . . . . . . . . . . . . . . . . . . . 470 480 Piercing . | . . . . . . . . . . . . . . . . . . . . . . . . . . . . . . Highest Corruption 17 | . . . . . . . . . . . . . . . 2 7 7 7 17 4 4 6 17 17 . 7 13 13 13 Average Corruption 6 | . . . . . . . . . . . . . . . 1 3 7 6 7 2 4 5 9 17 . 3 12 9 4 Corruption Purged 23 | . . . . . . . . . . . . . . . 2 . . 14 . . . . . . . 7 . . . Corruption Blocked 5 | . . . . . . . . . . . . . . . . . . . . . . . . . . . . . 5 Effects 420 | . . . . . . . . . . . . . . . 26 16 20 17 54 9 11 32 6 103 . 58 40 16 12 Message Errors 101 | . . . . . . . . . . . . . . . 7 2 8 5 13 1 5 7 1 28 . 13 5 5 1 Matter Fused 90 | . . . . . . . . . . . . . . . 5 5 6 3 9 3 . 9 . 20 . 15 11 1 3 Heat Flow Errors 46 | . . . . . . . . . . . . . . . 2 1 2 1 8 . 1 6 . 9 . 7 6 1 2 Energy Discharges 53 | . . . . . . . . . . . . . . . 2 2 1 4 7 1 2 5 1 13 . 7 3 5 . Parts Rejected 3 | . . . . . . . . . . . . . . . . . . 1 1 . . . . . . . . . 1 Parts Fused 8 | . . . . . . . . . . . . . . . 1 . . . . . . . . 5 . 1 . . 1 Data Loss (minor) 51 | . . . . . . . . . . . . . . . 6 4 1 1 7 1 3 2 . 14 . 3 7 . 2 Data Loss (major) 22 | . . . . . . . . . . . . . . . . . . . 1 1 . 1 3 5 . 3 5 3 . Misfires 21 | . . . . . . . . . . . . . . . 2 1 2 . 3 2 . . . 4 . 3 2 1 1 Alerts 9 | . . . . . . . . . . . . . . . . . . 1 . . . 2 . 2 . 3 1 . . Misdirections 3 | . . . . . . . . . . . . . . . . . . . . . . . 1 1 . . . . 1 Weapon Failures 13 | . . . . . . . . . . . . . . . 1 1 . 1 5 . . . . 2 . 3 . . . Overload Shots 5 | . . . . . 1 . . . . 1 . . . . . . . . . 3 . . . . . . . . . Effects 2 | . . . . . . . . . . . . . . . . . . . . 2 . . . . . . . . . Heat Surge 1 | . . . . . . . . . . . . . . . . . . . . 1 . . . . . . . . . Short Circuit 1 | . . . . . . . . . . . . . . . . . . . . 1 . . . . . . . . . Overflow Damage 4952 | . . . 179 668 . . . 185 201 . . . 496 . 432 66 75 60 304 236 20 84 136 23 58 517 91 448 673 Projectiles 2170 | . . . 24 . . . . . . . . . 223 . 153 38 75 60 193 223 20 84 . 23 58 270 91 130 505 Explosions 1489 | . . . 67 . . . . . . . . . 122 . 279 28 . . 111 13 . . 136 . . 247 . 318 168 Melee 1293 | . . . 88 668 . . . 185 201 . . . 151 . . . . . . . . . . . . . . . . Knockbacks 24 | . 1 . 1 3 . . . . 1 . . . 2 . . . . . 1 . . . . . . . . 1 14 Impact 9 | . 1 . 1 3 . . . . 1 . . . 2 . . . . . 1 . . . . . . . . . . Kinetic 13 | . . . . . . . . . . . . . . . . . . . . . . . . . . . . 1 12 Secondary 2 | . . . . . . . . . . . . . . . . . . . . . . . . . . . . . 2 Self-Inflicted Damage 2107 | . . . 280 . . . . . . . . . . . 274 22 . . 443 . . . 236 . . 141 . 495 216 Shots 40 | . . . 7 . . . . . . . . . . . 5 1 . . 9 . . . 4 . . 3 . 7 4 Rammed 18 | . 2 . 5 . . . . . . . . . . . . . . . 4 3 . . 1 . . 3 . . . Targets Rammed 24 | . 2 . 5 . . . . . . . . . . . 2 1 . . 5 3 . . 2 . . 4 . . . Kicked 4 | . . . . . . . . . . . . . . . 2 1 . . . . . . 1 . . . . . . Crushed 2 | . . . . . . . . . . . . . . . . . . . 1 . . . . . . 1 . . . Highest Temperature 328 | . 80 280 228 39 48 45 14 50 38 40 . . 210 . 162 255 232 38 234 328 258 254 92 247 . 245 216 117 324 Average Temperature 54 | . 24 98 54 5 18 19 7 22 6 18 . . 77 . 54 134 151 38 76 64 108 88 46 85 . 67 56 59 85 Received Heat Transfer 6799 | . 186 222 1566 12 . . . . 58 9 . . 207 111 252 83 . . 930 1254 9 45 207 322 . 95 224 701 306 Effects 1 | . . . . . . . . . . . . . . . . . . . . 1 . . . . . . . . . Energy Bleed 1 | . . . . . . . . . . . . . . . . . . . . 1 . . . . . . . . . Siege Activations 78 | . . . . . . . . . . . . . . . . . . . 12 13 1 6 1 8 . 19 8 5 5 Total Turns 1415 | . . . . . . . . . . . . . . . . . . . 283 312 11 58 21 95 . 295 152 133 55 Longest Duration 81 | . . . . . . . . . . . . . . . . . . . 81 58 11 17 21 22 . 35 47 69 20 Robots Corrupted 21 | . . . 1 9 . . . . 4 . . . 6 . . . . . . . . . . . . . . . 1 Combat Hostiles 8 | . . . . 1 . . . . . . . . 6 . . . . . . . . . . . . . . . 1 Parts Fried 34 | . . . 3 9 . . . . 10 . . . 2 . . 3 2 . 3 . . . . . . . . . 2 Impact Corruptions 36 | . . . 1 15 . . . 5 9 . . . 4 . . . . . . . . . . . . . . . 2 Robots Melted 5 | . . 1 . . . . . . . . . . 1 . . . . . . 1 . . . . . . . 1 1 Combat Hostiles 5 | . . 1 . . . . . . . . . . 1 . . . . . . 1 . . . . . . . 1 1 Parts Melted 41 | . . 8 7 . . . . . . . . . 6 1 4 . . . 6 5 . 1 . 1 . . . 1 1 Heat Transferred 36391 | 125 350 1443 3488 . . . . . . . . . 1233 600 2850 937 750 475 3863 5096 225 800 711 1384 200 2671 1450 7320 420 Parts Sabotaged 2 | . . . . . . . . . . . . . . . . . . . . 1 . . . . . . . 1 . Parts Stolen . | . . . . . . . . . . . . . . . . . . . . . . . . . . . . . . Parts Stripped 18 | . . . . . . . . . . . . . . . . . . . . . . . . . . . . 18 . Power Chain Reactions 13 | . . . 6 . . . . . . . . . . . . . . . . . . 1 5 . . . 1 . . Alert | -11 -10 -10 -8 -7 -7 -7 -7 -6 -6 -6 -6 -6 -6 -5 -5 -5 -5 -5 -5 -4 -4 -4 -4 -3 -3 -3 -2 -2 -2 ------- Run | Yrd Mat Sub Mat Fac Low Low Dat Pro Fac Low Low Zio Dee Pro Fac Ext Cet Arc Hub Fac Upp Upp War Pro Res Tes Res Qua Sec Peak Influence 2644 | 15 250 . 861 578 . . . . 155 . . . . . 861 801 639 440 1701 1960 . . . . 108 1448 1865 2644 1934 Initial 1481 | . 9 . . 391 . . . . 6 . . . . . . 317 364 176 . 833 . . . . 1 49 814 1048 1481 Average 664 | 8 131 . 477 308 . . . . 91 . . . . . 330 534 450 208 723 1300 . . . . 62 639 1184 1740 1491 Maximum Alert Level 5 | . 1 . 3 2 . . . . . . . . . . 3 3 2 2 5 5 . . . . . 4 5 5 5 Low Security (%) 26 | 100 86 . 9 44 . . . . 100 . . . . . 54 . . 46 4 . . . . . 100 28 . . . Level 1 16 | . 13 . 41 10 . . . . . . . . . . . 29 7 29 23 . . . . . . 26 . . . Level 2 16 | . . . 18 45 . . . . . . . . . . 28 59 92 24 36 . . . . . . 2 . . . Level 3 15 | . . . 31 . . . . . . . . . . . 16 10 . . 10 38 . . . . . 3 47 6 . Level 4 19 | . . . . . . . . . . . . . . . . . . . 19 45 . . . . . 38 45 40 86 Level 5 2 | . . . . . . . . . . . . . . . . . . . 5 16 . . . . . . 6 8 7 High Security 2 | . . . . . . . . . . . . . . . . . . . . . . . . . . . . 45 6 Max Security . | . . . . . . . . . . . . . . . . . . . . . . . . . . . . . . Squads Dispatched 105 | . 3 . 7 3 . . . . 3 . 1 . . . 8 1 . . 18 9 . . . . 8 12 2 23 7 Investigation 10 | . 3 . . 2 . . . . . . . . . . 1 . . . . . . . . . 3 1 . . . Extermination 18 | . . . . . . . . . . . . . . . 2 . . . 5 4 . . . . . 5 . 1 1 Reinforcement 32 | . . . 5 1 . . . . 3 . . . . . 2 . . . 6 1 . . . . 5 2 2 3 2 Assault 33 | . . . 1 . . . . . . . 1 . . . 2 1 . . 3 4 . . . . . 4 . 16 1 Garrison 9 | . . . 1 . . . . . . . . . . . 1 . . . 4 . . . . . . . . 3 . Intercept 3 | . . . . . . . . . . . . . . . . . . . . . . . . . . . . . 3 Searches Triggered . | . . . . . . . . . . . . . . . . . . . . . . . . . . . . . . Data Miner Redirects 3 | . . . . . . . . . . . . . . . . . . . 1 1 . . . . . . . . 1 Construction Impeded 3 | . . . . . . . . . 1 . . . . . 1 . . . . . . . . . . . . 1 . Haulers Reinforced 6 | . . . . 1 . . . . . . . . . . . . . . . 1 . . . . 3 1 . . . Active Scanning Responses . | . . . . . . . . . . . . . . . . . . . . . . . . . . . . . . Cargo Convoy Interrupts . | . . . . . . . . . . . . . . . . . . . . . . . . . . . . . . Stealth | -11 -10 -10 -8 -7 -7 -7 -7 -6 -6 -6 -6 -6 -6 -5 -5 -5 -5 -5 -5 -4 -4 -4 -4 -3 -3 -3 -2 -2 -2 --------- Run | Yrd Mat Sub Mat Fac Low Low Dat Pro Fac Low Low Zio Dee Pro Fac Ext Cet Arc Hub Fac Upp Upp War Pro Res Tes Res Qua Sec Distress Signals 34 | . . . 7 . . . . . 1 . . . . . 4 . 2 . . 1 . . 1 . 10 2 4 1 1 Communications Jammed 334 | . . . . . . . . . . . . . . . . 38 . . 58 50 . . . . . 14 4 97 73 Distress Signals 330 | . . . . . . . . . . . . . . . . 38 . . 56 50 . . . . . 13 4 97 72 Times Spotted 792 | . 21 18 76 17 2 10 . 6 13 8 3 . 58 8 52 24 12 12 68 63 1 10 24 18 7 65 59 102 35 Peak Tracking Total 37 | . 4 2 9 5 3 4 . 4 5 4 9 . 37 5 13 4 5 1 13 8 1 3 12 4 1 7 10 17 7 Tactical Retreats 61 | . 3 . 1 6 1 3 . 2 3 5 3 . 2 1 2 4 . . 5 3 . . . . . 3 5 9 . Traps | -11 -10 -10 -8 -7 -7 -7 -7 -6 -6 -6 -6 -6 -6 -5 -5 -5 -5 -5 -5 -4 -4 -4 -4 -3 -3 -3 -2 -2 -2 ------- Run | Yrd Mat Sub Mat Fac Low Low Dat Pro Fac Low Low Zio Dee Pro Fac Ext Cet Arc Hub Fac Upp Upp War Pro Res Tes Res Qua Sec Traps Triggered 15 | . 1 2 . 1 . . . . 1 . . . . . 1 3 . . 4 . . . . . . 1 . 1 . Indirectly . | . . . . . . . . . . . . . . . . . . . . . . . . . . . . . . Trap Hack Attempts 27 | . . . 27 . . . . . . . . . . . . . . . . . . . . . . . . . . Triggered . | . . . . . . . . . . . . . . . . . . . . . . . . . . . . . . Disarmed . | . . . . . . . . . . . . . . . . . . . . . . . . . . . . . . Reprogrammed 1 | . . . 1 . . . . . . . . . . . . . . . . . . . . . . . . . . Reused . | . . . . . . . . . . . . . . . . . . . . . . . . . . . . . . Traps Extracted . | . . . . . . . . . . . . . . . . . . . . . . . . . . . . . . Installed . | . . . . . . . . . . . . . . . . . . . . . . . . . . . . . . Triggered 14 | . . 1 . . . . . . . . . . . 1 . . . . . . . . 12 . . . . . . Machines | -11 -10 -10 -8 -7 -7 -7 -7 -6 -6 -6 -6 -6 -6 -5 -5 -5 -5 -5 -5 -4 -4 -4 -4 -3 -3 -3 -2 -2 -2 ---------- Run | Yrd Mat Sub Mat Fac Low Low Dat Pro Fac Low Low Zio Dee Pro Fac Ext Cet Arc Hub Fac Upp Upp War Pro Res Tes Res Qua Sec Machines Disabled 96 | . 1 2 7 . 1 . . . . . 1 . 2 . 21 2 . 3 11 6 . . . . . 23 4 6 6 Max in Single Turn 8 | . 1 1 4 . 1 . . . . . 1 . 1 . 8 . . 1 5 3 . . . . . 4 1 1 3 Garrison Access 8 | . . . . 2 . . . . . . . . . . 2 . . . . 1 . . . . . 1 2 . . Network Hub 2 | . . . . . . . . . . . . . . . . . . . 2 . . . . . . . . . . Energy Cycler 2 | . . . . . . . . . . . . . . . . 2 . . . . . . . . . . . . . Machines Repaired . | . . . . . . . . . . . . . . . . . . . . . . . . . . . . . . Machines Dismantled . | . . . . . . . . . . . . . . . . . . . . . . . . . . . . . . Machines Sabotaged . | . . . . . . . . . . . . . . . . . . . . . . . . . . . . . . Overloaded Fab Kills . | . . . . . . . . . . . . . . . . . . . . . . . . . . . . . . Hacking | -11 -10 -10 -8 -7 -7 -7 -7 -6 -6 -6 -6 -6 -6 -5 -5 -5 -5 -5 -5 -4 -4 -4 -4 -3 -3 -3 -2 -2 -2 --------- Run | Yrd Mat Sub Mat Fac Low Low Dat Pro Fac Low Low Zio Dee Pro Fac Ext Cet Arc Hub Fac Upp Upp War Pro Res Tes Res Qua Sec Machines Accessed 109 | . 9 4 10 22 . 1 4 . 7 . . . . . 10 6 . . 7 4 . 1 3 . 6 10 . 1 4 Terminals 62 | . 6 . 7 12 . . . . 5 . . . . . 5 4 . . 7 1 . . . . 3 7 . 1 4 Fabricators 9 | . . . . 1 . . . . 1 . . . . . 2 . . . . 1 . . . . 2 2 . . . Repair Stations 9 | . 1 . 2 2 . . . . 1 . . . . . 1 1 . . . . . . . . 1 . . . . Recycling Units 8 | . 2 . 1 3 . . . . . . . . . . . 1 . . . 1 . . . . . . . . . Scanalyzers 2 | . . . . 2 . . . . . . . . . . . . . . . . . . . . . . . . . Garrison Access 6 | . . . . 2 . . . . . . . . . . 2 . . . . 1 . . . . . 1 . . . Total Hacks 376 | . 33 10 36 74 . 1 29 . 31 . . . . . 24 14 . . 18 15 . 1 7 . 33 39 . 3 8 Successful 248 | . 23 10 24 49 . 1 29 . 24 . . . . . 17 7 . . 9 7 . 1 7 . 19 18 . 1 2 Failed 127 | . 10 . 12 24 . . . . 7 . . . . . 7 7 . . 9 8 . . . . 14 21 . 2 6 Catastrophic 19 | . 1 . 1 2 . . . . . . . . . . 3 1 . . 2 1 . . . . 4 2 . 1 1 Database Lockouts 1 | . . . . 1 . . . . . . . . . . . . . . . . . . . . . . . . . Manual 166 | . 23 . 25 33 . . . . 17 . . 5 . . 9 3 1 . 5 9 . . 1 . 16 12 . 3 4 Terminals 242 | . 27 . 28 49 . . . . 21 . . . . . 13 9 . . 18 7 . . . . 23 36 . 3 8 Fabricators 24 | . . . . 3 . . . . 4 . . . . . 6 . . . . 2 . . . . 7 2 . . . Repair Stations 30 | . 2 . 7 6 . . . . 6 . . . . . 3 3 . . . . . . . . 3 . . . . Recycling Units 18 | . 4 . 1 7 . . . . . . . . . . . 2 . . . 4 . . . . . . . . . Scanalyzers 4 | . . . . 4 . . . . . . . . . . . . . . . . . . . . . . . . . Garrison Access 10 | . . . . 5 . . . . . . . . . . 2 . . . . 2 . . . . . 1 . . . Terminal Hacks 133 | . 9 10 5 22 . 1 29 . 7 . . . . . 9 4 . . 7 2 . 1 7 . 8 11 . . 1 Record 27 | . . 8 . . . . 11 . . . . . . . . . . . . . . . 7 . 1 . . . . Part Schematic 17 | . 2 . . 3 . . 11 . . . . . . . 1 . . . . . . . . . . . . . . Robot Schematic 4 | . . . . . . . 4 . . . . . . . . . . . . . . . . . . . . . . Prototype ID Bank 11 | . 2 . 1 1 . . 3 . 1 . . . . . . . . . 1 . . . . . 1 1 . . . Open Door 4 | . . 1 . . . 1 . . . . . . . . . 1 . . . . . 1 . . . . . . . Level Access Points 1 | . . . . . . . . . . . . . . . . . . . . . . . . . . 1 . . . Branch Access Points 4 | . . . . 1 . . . . 1 . . . . . . . . . . 1 . . . . 1 . . . . Emergency Access Points 5 | . 2 . . . . . . . . . . . . . . . . . 2 . . . . . . 1 . . . Terminal Index 5 | . 1 . 1 1 . . . . . . . . . . . . . . . . . . . . 1 1 . . . Fabricator Index 1 | . . . . 1 . . . . . . . . . . . . . . . . . . . . . . . . . Repair Station Index 2 | . . . . . . . . . . . . . . . . . . . . . . . . . 1 1 . . . Recycling Unit Index 3 | . . . . 1 . . . . . . . . . . . . . . . . . . . . 1 1 . . . Garrison Index 2 | . . . . 1 . . . . . . . . . . . . . . . . . . . . . 1 . . . Alert Level 12 | . . . 1 2 . . . . 1 . . . . . 2 1 . . 2 1 . . . . 1 1 . . . Unreport Threat 12 | . . . 1 3 . . . . . . . . . . 4 2 . . 1 . . . . . . . . . 1 Locate Traps 5 | . 1 . . 3 . . . . . . . . . . 1 . . . . . . . . . . . . . . Dispatch Records 1 | . . . . 1 . . . . . . . . . . . . . . . . . . . . . . . . . Patrol Status 2 | . . . . 1 . . . . 1 . . . . . . . . . . . . . . . . . . . . Recall Investigation 1 | . . . . 1 . . . . . . . . . . . . . . . . . . . . . . . . . Recall Reinforcements 3 | . . . . 1 . . . . 1 . . . . . . . . . 1 . . . . . . . . . . Recall Assault 1 | . . . . . . . . . . . . . . . 1 . . . . . . . . . . . . . . Hauler Manifests 4 | . . . 1 1 . . . . 1 . . . . . . . . . . . . . . . . 1 . . . Registered Components 1 | . . . . . . . . . . . . . . . . . . . . . . . . . 1 . . . . Zone Layout 3 | . 1 . . . . . . . 1 . . . . . . . . . . . . . . . . 1 . . . Derelict Proto ID Bank 1 | . . 1 . . . . . . . . . . . . . . . . . . . . . . . . . . . Protovariant Controls 1 | . . . . . . . . . . . . . . . . . . . . . . . . . . 1 . . . Fabricator Hacks 18 | . . . . 2 . . . . 3 . . . . . 4 . . . . 2 . . . . 5 2 . . . Network Status 7 | . . . . 1 . . . . 1 . . . . . 1 . . . . 1 . . . . 1 2 . . . Load Schematic 7 | . . . . 1 . . . . 1 . . . . . 2 . . . . 1 . . . . 2 . . . . Build 4 | . . . . . . . . . 1 . . . . . 1 . . . . . . . . . 2 . . . . Repair Station Hacks 24 | . 2 . 6 6 . . . . 6 . . . . . . 2 . . . . . . . . 2 . . . . Scan Component 12 | . 1 . 3 3 . . . . 3 . . . . . . 1 . . . . . . . . 1 . . . . Repair 12 | . 1 . 3 3 . . . . 3 . . . . . . 1 . . . . . . . . 1 . . . . Recycling Unit Hacks 7 | . 2 . 1 3 . . . . . . . . . . . 1 . . . . . . . . . . . . . Retrieve Components 7 | . 2 . 1 3 . . . . . . . . . . . 1 . . . . . . . . . . . . . Scanalyzer 4 | . . . . 4 . . . . . . . . . . . . . . . . . . . . . . . . . Insert Component 2 | . . . . 2 . . . . . . . . . . . . . . . . . . . . . . . . . Analyze 2 | . . . . 2 . . . . . . . . . . . . . . . . . . . . . . . . . Garrison Access Hacks 6 | . . . . 2 . . . . . . . . . . 2 . . . . 1 . . . . . 1 . . . Seal Access 6 | . . . . 2 . . . . . . . . . . 2 . . . . 1 . . . . . 1 . . . Unauthorized Hacks 56 | . 10 . 12 10 . . . . 8 . . . . . 2 . . . 2 2 . . . . 4 4 . 1 1 Terminals 48 | . 8 . 12 8 . . . . 8 . . . . . . . . . 2 1 . . . . 3 4 . 1 1 Assimilate 1 | . . . . . . . . . 1 . . . . . . . . . . . . . . . . . . . . Botnet 18 | . 2 . 3 2 . . . . 3 . . . . . . . . . 2 1 . . . . 1 2 . 1 1 Disrupt 1 | . . . 1 . . . . . . . . . . . . . . . . . . . . . . . . . . Operators 5 | . 1 . 1 1 . . . . 1 . . . . . . . . . . . . . . . 1 . . . . Skim 23 | . 5 . 7 5 . . . . 3 . . . . . . . . . . . . . . . 1 2 . . . Fabricators 4 | . . . . 1 . . . . . . . . . . 2 . . . . . . . . . 1 . . . . Prioritize 2 | . . . . . . . . . . . . . . . 1 . . . . . . . . . 1 . . . . Recompile 2 | . . . . 1 . . . . . . . . . . 1 . . . . . . . . . . . . . . Repair Stations . | . . . . . . . . . . . . . . . . . . . . . . . . . . . . . . Recycling Units 4 | . 2 . . 1 . . . . . . . . . . . . . . . 1 . . . . . . . . . Mask 1 | . . . . . . . . . . . . . . . . . . . . 1 . . . . . . . . . Tunnel 3 | . 2 . . 1 . . . . . . . . . . . . . . . . . . . . . . . . . Scanalyzers . | . . . . . . . . . . . . . . . . . . . . . . . . . . . . . . Garrison Access . | . . . . . . . . . . . . . . . . . . . . . . . . . . . . . . Data Cores Recovered 4 | . 1 . 1 . . . . . . . . . . . . . . . . . . . . . 1 . . 1 . Used 1 | . . . . . . . . . . . . . . . . . . . . . . . . . 1 . . . . Hacking Detections 79 | . 8 . 8 18 . . . . 6 . . . . . 6 6 1 . 7 2 . . . . 6 8 . 1 2 Full Trace Events 4 | . . . 1 . . . . . . . . . . . . . . . . . . . . . 2 1 . . . Feedback Events 1 | . . . . . . . . . . . . . . . . . . . . . . . . . . 1 . . . Corruption 1 | . . . . . . . . . . . . . . . . . . . . . . . . . . 1 . . . Feedback Blocked . | . . . . . . . . . . . . . . . . . . . . . . . . . . . . . . Robot Schematics Acquired 8 | . . . . . . . 4 . . . . 2 . . . . . . . . . . . . . . . . 2 Robots Built . | . . . . . . . . . . . . . . . . . . . . . . . . . . . . . . Authchips . | . . . . . . . . . . . . . . . . . . . . . . . . . . . . . . Time . | . . . . . . . . . . . . . . . . . . . . . . . . . . . . . . Total Robot Build Rating . | . . . . . . . . . . . . . . . . . . . . . . . . . . . . . . Part Schematics Acquired 40 | . 2 . . 5 . . 11 . . . . 14 . . 1 . . . . . . . . . . . . . 7 Parts Built 4 | . . . . . . . . . 1 . . . . . 2 . . . . . . . . . 1 . . . . Authchips 2 | . . . . . . . . . 1 . . . . . 1 . . . . . . . . . . . . . . Time 170 | . . . . . . . . . 67 . . . . . 29 . . . . . . . . . 74 . . . . Total Part Build Rating 26 | . . . . . . . . . 4 . . . . . 14 . . . . . . . . . 8 . . . . Parts Repaired 12 | . 1 . 3 3 . . . . 3 . . . . . . 1 . . . . . . . . 1 . . . . Time 409 | . 26 . 120 102 . . . . 120 . . . . . . 22 . . . . . . . . 19 . . . . Parts Recycled . | . . . . . . . . . . . . . . . . . . . . . . . . . . . . . . Recycled Matter . | . . . . . . . . . . . . . . . . . . . . . . . . . . . . . . Retrieved Matter . | . . . . . . . . . . . . . . . . . . . . . . . . . . . . . . Retrieved Components 33 | . 12 . 10 8 . . . . . . . . . . . 3 . . . . . . . . . . . . . Parts Scanalyzed 2 | . . . . 2 . . . . . . . . . . . . . . . . . . . . . . . . . Part Schematics Acquired 2 | . . . . 2 . . . . . . . . . . . . . . . . . . . . . . . . . Parts Damaged . | . . . . . . . . . . . . . . . . . . . . . . . . . . . . . . Bothacking | -11 -10 -10 -8 -7 -7 -7 -7 -6 -6 -6 -6 -6 -6 -5 -5 -5 -5 -5 -5 -4 -4 -4 -4 -3 -3 -3 -2 -2 -2 ------------ Run | Yrd Mat Sub Mat Fac Low Low Dat Pro Fac Low Low Zio Dee Pro Fac Ext Cet Arc Hub Fac Upp Upp War Pro Res Tes Res Qua Sec Used RIF Installer . | . . . . . . . . . . . . . . . . . . . . . . . . . . . . . . Robots Hacked 2 | . . . . . . . . . . . . 2 . . . . . . . . . . . . . . . . . Non-combat 1 | . . . . . . . . . . . . 1 . . . . . . . . . . . . . . . . . Combat 1 | . . . . . . . . . . . . 1 . . . . . . . . . . . . . . . . . Robot Hacks Applied 2 | . . . . . . . . . . . . 2 . . . . . . . . . . . . . . . . . parse_system 2 | . . . . . . . . . . . . 2 . . . . . . . . . . . . . . . . . Relay Couplers Released 5 | . . . . . . . . . . . . . . . 2 . . . . . . . . . . 2 1 . . Machine Destruction 5 | . . . . . . . . . . . . . . . 2 . . . . . . . . . . 2 1 . . Fabnet Peak Effective % . | . . . . . . . . . . . . . . . . . . . . . . . . . . . . . . Robots Rewired 4 | . . . . . . . . . . . . . . . . 4 . . . . . . . . . . . . . Allies Hacked . | . . . . . . . . . . . . . . . . . . . . . . . . . . . . . . Hacks Repelled . | . . . . . . . . . . . . . . . . . . . . . . . . . . . . . . Allies | -11 -10 -10 -8 -7 -7 -7 -7 -6 -6 -6 -6 -6 -6 -5 -5 -5 -5 -5 -5 -4 -4 -4 -4 -3 -3 -3 -2 -2 -2 -------- Run | Yrd Mat Sub Mat Fac Low Low Dat Pro Fac Low Low Zio Dee Pro Fac Ext Cet Arc Hub Fac Upp Upp War Pro Res Tes Res Qua Sec Total Allies 16 | . . . . . . . . . 1 . . 2 . . . 8 5 . . . . . . . . . . . . Largest Group 6 | . . . . . . . . . 1 . . 2 2 . . 6 6 5 5 . . . . . . . . . . Highest-Rated Group 626 | . . . . . . . . . 26 . . 192 192 . . 327 626 473 473 . . . . . . . . . . Highest-Rated Ally 159 | . . . . . . . . . 26 . . 96 96 . . 159 152 96 96 . . . . . . . . . . Total Orders 2 | . . . . . . . . . . . . . . . . . . 2 . . . . . . . . . . . STAY 1 | . . . . . . . . . . . . . . . . . . 1 . . . . . . . . . . . FOLLOW 1 | . . . . . . . . . . . . . . . . . . 1 . . . . . . . . . . . Ally Attacks 284 | . . . . . . . . . . . . . 43 . . 111 34 26 70 . . . . . . . . . . Total Damage 8026 | . . . . . . . . . . . . . 885 . . 2955 1001 873 2312 . . . . . . . . . . Kills 40 | . . . . . . . . . . . . . 5 . . 18 5 3 9 . . . . . . . . . . Allies Corrupted . | . . . . . . . . . . . . . . . . . . . . . . . . . . . . . . Allies Melted 4 | . . . . . . . . . . . . . . . . . . . . . . . 2 . . . 2 . . Intel | -11 -10 -10 -8 -7 -7 -7 -7 -6 -6 -6 -6 -6 -6 -5 -5 -5 -5 -5 -5 -4 -4 -4 -4 -3 -3 -3 -2 -2 -2 ------- Run | Yrd Mat Sub Mat Fac Low Low Dat Pro Fac Low Low Zio Dee Pro Fac Ext Cet Arc Hub Fac Upp Upp War Pro Res Tes Res Qua Sec Robot Analysis Total . | . . . . . . . . . . . . . . . . . . . . . . . . . . . . . . Derelict Logs Recovered 13 | . . . . . 1 1 . 2 . 1 1 2 . 1 . . . . . . 2 2 . . . . . . . Drone Launches . | . . . . . . . . . . . . . . . . . . . . . . . . . . . . . . Drone Recoveries . | . . . . . . . . . . . . . . . . . . . . . . . . . . . . . . Exploration | -11 -10 -10 -8 -7 -7 -7 -7 -6 -6 -6 -6 -6 -6 -5 -5 -5 -5 -5 -5 -4 -4 -4 -4 -3 -3 -3 -2 -2 -2 ------------- Run | Yrd Mat Sub Mat Fac Low Low Dat Pro Fac Low Low Zio Dee Pro Fac Ext Cet Arc Hub Fac Upp Upp War Pro Res Tes Res Qua Sec Turns Passed 44178 | 177 1613 6515 3339 726 134 107 26 92 428 138 59 500 5508 1419 2136 1088 580 1458 2337 1654 725 1412 1211 2191 794 3384 2616 1017 794 Spaces Moved 21657 | 90 523 1881 1075 2201 463 424 82 366 860 517 219 1393 3078 510 742 437 152 297 733 395 195 461 487 467 304 1270 1291 406 338 Core 48 | 7 . . . . . . . . . . . 4 . . . . . 6 . . . . . . . . . . 31 Treads 8074 | 83 523 1881 737 . . . . . . . . . . . . . . 149 733 395 . 1 . 14 288 1270 1291 406 303 Legs 5676 | . . . . . . . . . . . . . 2082 510 742 437 152 142 . . 195 460 487 453 16 . . . . Wheels 342 | . . . 338 . . . . . . . . . . . . . . . . . . . . . . . . . 4 Hover 795 | . . . . . . . . . . . . . 795 . . . . . . . . . . . . . . . . Flight 6722 | . . . . 2201 463 424 82 366 860 517 219 1389 201 . . . . . . . . . . . . . . . . Fastest Speed 23 | 50 160 320 131 23 23 23 23 23 23 24 24 24 24 189 189 210 210 180 240 240 210 210 210 180 232 145 155 152 50 Average Speed 155 | 151 264 320 222 23 23 23 23 23 23 24 24 34 132 205 228 210 245 283 240 247 243 240 237 243 232 205 163 156 145 Slowest Speed 2950 | 160 320 320 410 96 23 23 23 23 24 24 24 750 195 275 242 240 300 2950 240 320 300 320 240 330 240 233 250 245 560 Overloaded Moves . | . . . . . . . . . . . . . . . . . . . . . . . . . . . . . . Propulsion Burnouts . | . . . . . . . . . . . . . . . . . . . . . . . . . . . . . . Robots Hopped 14 | . . . . 9 . . . . 5 . . . . . . . . . . . . . . . . . . . . Cave-ins Triggered 1 | . . . . . . . . . . . . . . . . . . . . . . . . . . . 1 . . Exploration Rate (%) 57 | 7 74 86 83 57 64 64 70 60 19 79 42 90 93 57 26 63 56 83 81 14 31 61 82 45 14 96 56 60 20 Regions Visited 29 Branch Regions 21 Pre-discovered Areas 15 | . 3 1 1 4 . . 1 . . 1 1 2 . . . . . . . . . 1 . . . . . . . Known Exits Taken 13 | . 1 . 1 1 1 . . 1 1 . . . . 1 1 . . . 1 1 1 . . . 1 1 . . . Unknown Exits Taken 16 | 1 . 1 . . . 1 1 . . 1 1 1 1 . . 1 1 1 . . . 1 1 1 . . 1 1 . Scrap Searched 30 | . . 10 . . 1 2 . 2 . 3 1 3 . . . . . . . . 1 3 . 4 . . . . . Spaces Dug 183 | . . 36 . 14 4 . . . 7 4 . . 3 4 3 4 . . 3 24 . . . . 3 27 23 2 22 Terrain Destroyed 1531 | . . 41 174 14 4 . . . 7 4 . . 18 10 106 19 2 6 382 112 4 65 54 19 3 150 104 129 104 Melee 67 | . . 35 . 14 3 . . . 7 2 . . 3 . . . . . . . . . . . . . . . 3 Projectile 298 | . . 6 11 . 1 . . . . 2 . . 15 10 30 12 2 6 26 27 4 9 2 19 3 55 42 13 3 AOE 1142 | . . . 163 . . . . . . . . . . . 76 7 . . 356 85 . 56 52 . . 94 57 106 90 Terrain Rammed . | . . . . . . . . . . . . . . . . . . . . . . . . . . . . . . Walls Destroyed . | . . . . . . . . . . . . . . . . . . . . . . . . . . . . . . Machines Disabled . | . . . . . . . . . . . . . . . . . . . . . . . . . . . . . . Actions | -11 -10 -10 -8 -7 -7 -7 -7 -6 -6 -6 -6 -6 -6 -5 -5 -5 -5 -5 -5 -4 -4 -4 -4 -3 -3 -3 -2 -2 -2 --------- Run | Yrd Mat Sub Mat Fac Low Low Dat Pro Fac Low Low Zio Dee Pro Fac Ext Cet Arc Hub Fac Upp Upp War Pro Res Tes Res Qua Sec Total 29638 | 112 656 2122 1734 2343 482 432 88 369 1040 523 220 1414 4379 851 1042 560 335 902 1092 845 436 726 530 1476 381 1796 1603 608 541 Wait 4848 | . 33 27 291 37 8 9 7 . 119 . . 6 1013 308 148 32 131 502 143 229 222 223 9 874 60 259 70 27 61 Move 21602 | 89 522 1880 1074 2183 462 423 81 365 850 516 218 1392 3077 509 741 436 151 296 732 394 194 460 487 466 303 1269 1289 405 338 Hop 12 | . . . . 8 . . . . 4 . . . . . . . . . . . . . . . . . . . . Pick Up 339 | 7 30 17 43 17 . . . 1 2 . . 2 47 . 9 6 11 30 16 16 2 2 2 32 4 19 9 9 6 Fast Attach 253 | 7 1 6 20 5 2 . . . 8 . . 4 30 3 8 7 2 7 11 10 2 2 6 4 1 27 47 17 16 Attach 139 | . 1 6 13 7 2 . . . 6 1 . 3 13 2 11 4 . 3 1 11 . . 1 6 . 6 7 15 20 Detach 86 | . . 1 2 3 2 . . . 6 1 . . 14 . 6 2 . 1 2 9 1 3 1 6 . 6 2 9 9 Swap 185 | . 4 21 34 19 . . . . 2 . . . 19 . 5 3 4 2 11 11 1 2 2 3 1 18 18 4 1 Drop 584 | 1 12 20 50 30 1 . . 1 3 . . 4 80 12 22 16 20 42 33 34 7 10 11 48 2 44 49 20 12 Fire 1283 | 8 51 67 173 . 2 . . . . 3 . . 73 17 90 31 16 19 138 128 7 24 9 37 10 144 111 77 48 Melee 180 | . . 77 1 28 3 . . 2 17 2 2 3 13 . . . . . . . . . . . . . . 16 16 Ram 2 | . . . 1 . . . . . . . . . . . . . . . . . . . 1 . . . . . . Kick 4 | . . . . . . . . . . . . . . . 2 1 . . . . . . 1 . . . . . . Crush 18 | . 2 . 4 . . . . . . . . . . . . . . . 5 3 . . . . . 4 . . . Escape Stasis 44 | . . . . . . . . . 18 . . . . . . 2 . . . . . . . . . . 1 9 14 Rewire 20 | . . . . . . . . . . . . . . . . 20 . . . . . . . . . . . . . Trap 27 | . . . 27 . . . . . . . . . . . . . . . . . . . . . . . . . . Miscellaneous 12 | . . . 1 6 . . . . 5 . . . . . . . . . . . . . . . . . . . . Route ------- -11/Scrapyard -10/Materials (discovered 6 exits: *Mat x3 / [*Min x2] / *Sub) -10/Subcaves (discovered 2 exits: *Mat x2) -8/Materials (discovered 3 exits: *Fac x3) -7/Factory (discovered 6 exits: *Fac x2 / *Sto x2 / *Low x2) -7/Lower Caves -7/Lower Caves (discovered 2 exits: *Fac / *Dat) -7/Data Miner -6/Proximity Caves -6/Factory (discovered 4 exits: *Fac x2 / *Low x2) -6/Lower Caves -6/Lower Caves -6/Zion (discovered 2 exits: [*Dee] / [*Pro]) -6/Deep Caves -5/Proximity Caves -5/Factory (discovered 3 exits: *Fac / Upp / *Ext) -5/Extension (discovered 3 exits: *Fac x2 / *Cet) -5/Cetus (discovered 2 exits: *Fac / [*Arc]) -5/Archives (discovered 3 exits: *Fac / *Hub x2) -5/Hub_04(d) (discovered 4 exits: *Fac x4) -4/Factory (discovered 4 exits: *Res / *Upp x2 / Arm) -4/Upper Caves -4/Upper Caves -4/Warlord -3/Proximity Caves -3/Research (discovered 2 exits: *Tes x2) -3/Testing -2/Research (discovered 4 exits: *Acc x3 / *Qua) -2/Quarantine (discovered 2 exits: *Acc / *Sec) -2/Section 7 History --------- Turn | Location | Event 44 | -11/Scrapyard | Discovered new exit (range 14) 178 | -11/Scrapyard | Entered Materials 309 | -10/Materials | Build established: Mutant 659 | -10/Materials | Discovered new exit (range 9) 886 | -10/Materials | Discovered new exit (range 11) 1122 | -10/Materials | Discovered new exit (range 11) 1474 | -10/Materials | Loaded intel: 21 trap records 1510 | -10/Materials | Identified exit to Subcaves 1510 | -10/Materials | Identified exit to Materials 1549 | -10/Materials | Discovered exit to Materials (range 3) 1550 | -10/Materials | Learned location of Subcaves (-10) 1557 | -10/Materials | Learned Materials trap positions 1558 | -10/Materials | Learned Storage stockpile data 1559 | -10/Materials | Learned Storage machine intel 1607 | -10/Materials | Repaired Lgt. Armor Plating 1614 | -10/Materials | Learned location of 2 exits from Materials 1791 | -10/Materials | Entered Subcaves 2564 | -10/Subcaves | Discovered new exit (range 10) 2744 | -10/Subcaves | Shifting Twisted Machinery released Mak. Laser 2758 | -10/Subcaves | Shifting Twisted Machinery released Sub. Beam Cannon 3023 | -10/Subcaves | Visited Clippyterm 3033 | -10/Subcaves | Learned Research security intel 3075 | -10/Subcaves | A swath of the cavern ceiling suddenly collapsed 3748 | -10/Subcaves | Shifting Twisted Machinery released Sub. Machine Gun 3816 | -10/Subcaves | Shifting Twisted Machinery released Sub. Machine Gun 3850 | -10/Subcaves | Shifting Twisted Machinery released Sub. Optics 3853 | -10/Subcaves | Shifting Twisted Machinery released Sub. Optics 3932 | -10/Subcaves | Learned location of Zion (-6) 3932 | -10/Subcaves | Met a Zionite searching for "candidates" 5688 | -10/Subcaves | Visited 4L-MR0's lab 5729 | -10/Subcaves | Found Meta Core 6748 | -10/Subcaves | A swath of the cavern ceiling suddenly collapsed 6957 | -10/Subcaves | Disturbed a concealed Subdweller 7028 | -10/Subcaves | Disturbed a concealed Subdweller 7456 | -10/Subcaves | Core integrity fell below 50% 7634 | -10/Subcaves | Discovered new exit (range 12) 8306 | -10/Subcaves | Entered Materials 8306 | -8/Materials | Evolved 4 slots: Propulsion x2, Utility x2 8307 | -8/Materials | Identified exit to Factory 8308 | -8/Materials | Loaded intel: 5 trap records 8687 | -8/Materials | Build established: Scavenger-Mutant 8731 | -8/Materials | Destroyed 10 combat bots 8739 | -8/Materials | Lost 4 parts (2n2u) 9242 | -8/Materials | Repaired Hrd. Medium Armor Plating 9287 | -8/Materials | Repaired Hrd. Heavy Armor Plating 9331 | -8/Materials | Garrison activated, responded to threat 9848 | -8/Materials | Repaired Arm. Treads 10218 | -8/Materials | Discovered exit to Factory (range 13) 10388 | -8/Materials | Core integrity fell below 50% 11152 | -8/Materials | Learned Factory emergency access door positions 11200 | -8/Materials | Learned location of 3 exits from Factory 11238 | -8/Materials | Learned Storage emergency access door positions 11283 | -8/Materials | Learned location of 1 exit from Storage 11291 | -8/Materials | Learned location of 1 exit from Recycling 11292 | -8/Materials | Learned Storage trap positions 11320 | -8/Materials | Learned location of 1 exit from Storage 11393 | -8/Materials | Learned 2 Lower Caves zone layouts 11506 | -8/Materials | First assault squad dispatched 11645 | -8/Materials | Entered Factory 11645 | -7/Factory | Evolved 2 slots: Utility x2 11646 | -7/Factory | Identified exit to Storage 11647 | -7/Factory | Identified exit to Factory 11647 | -7/Factory | Identified exit to Lower Caves 11773 | -7/Factory | Repaired Grenade Launcher 11840 | -7/Factory | Attached Meta Core, gained temporary slots: Propulsion, Utility, Weapon 11860 | -7/Factory | Central database locked down 11959 | -7/Factory | Build established: Hacker-Sprinter 11995 | -7/Factory | Discovered exit to Factory (range 6) 12054 | -7/Factory | Learned location of 2 exits from Factory 12096 | -7/Factory | Repaired Huge Storage Unit? 12151 | -7/Factory | Learned 4 Upper Caves zone layouts 12183 | -7/Factory | Learned location of 1 exit from Cetus 12207 | -7/Factory | Learned location of 1 exit from Upper Caves 12222 | -7/Factory | Learned location of Lower Caves (-6) 12246 | -7/Factory | Learned location of Extension (-5) 12280 | -7/Factory | Learned location of Upper Caves (-5) 12322 | -7/Factory | Learned location of 1 exit from Lower Caves 12347 | -7/Factory | Repaired Proton Cannon? 12371 | -7/Factory | Entered Lower Caves 12372 | -7/Lower Caves | Identified exit to Lower Caves 12474 | -7/Lower Caves | Found Alien Artifact 12474 | -7/Lower Caves | Identified Core Expander 12474 | -7/Lower Caves | Installed Core Expander, added new Utility slot 12505 | -7/Lower Caves | Entered another Lower Caves area 12511 | -7/Lower Caves | Discovered exit to Factory (range 5) 12573 | -7/Lower Caves | Learned Factory terminal intel 12610 | -7/Lower Caves | Discovered new exit (range 3) 12612 | -7/Lower Caves | Entered Data Miner 12612 | -7/Data Miner | Discovered new exit (range 6) 12617 | -7/Data Miner | Met Data Miner 12622 | -7/Data Miner | Learned location of Section 7 (-2) 12622 | -7/Data Miner | Acquired the access code to Warlord's prototype stash 12626 | -7/Data Miner | Received God Mode back door access code from Data Miner 12638 | -7/Data Miner | Entered Proximity Caves 12646 | -6/Proximity Caves | Spotted B-75 Beast 12672 | -6/Proximity Caves | Learned Factory non-interactive machine intel 12703 | -6/Proximity Caves | Discovered exit to Factory (range 9) 12730 | -6/Proximity Caves | Entered Factory 12730 | -6/Factory | Evolved 2 slots: Power x1, Utility x1 12731 | -6/Factory | Identified exit to Lower Caves 12731 | -6/Factory | Identified exit to Factory 12732 | -6/Factory | Loaded intel: 216 non-interactive machine locations 12733 | -6/Factory | Loaded intel: 26 terminal locations 12781 | -6/Factory | Spotted B-75 Beast 12792 | -6/Factory | Discovered exit to Factory (range 16) 12836 | -6/Factory | Fabricated Cld. VTOL Module? 12982 | -6/Factory | Repaired Hvy. Rocket Launcher 13021 | -6/Factory | Repaired Imp. Light Armor Plating 13060 | -6/Factory | Repaired Imp. Datajack 13158 | -6/Factory | Entered Lower Caves 13209 | -6/Lower Caves | Attracted the attention of an 0b10 checkpoint 13295 | -6/Lower Caves | Discovered new exit (range 3) 13296 | -6/Lower Caves | Entered another Lower Caves area 13315 | -6/Lower Caves | Attracted the attention of an 0b10 outpost 13351 | -6/Lower Caves | Discovered new exit (range 15) 13355 | -6/Lower Caves | Entered Zion 13358 | -6/Zion | Acquired unknown access codes intercepted by a Zionite 13373 | -6/Zion | Given A8's code to call for help 13373 | -6/Zion | Discovered new exit (range 9) 13437 | -6/Zion | Learned 4 Factory zone layouts 13474 | -6/Zion | Learned Factory terminal intel 13537 | -6/Zion | Met Imprinter 13578 | -6/Zion | Opened final containment barrier to the Deep Caves 13581 | -6/Zion | Discovered new exit (range 5) 13582 | -6/Zion | Saw the warning signs outside the Deep Caves entrance 13614 | -6/Zion | Found GAL Module 13743 | -6/Zion | Enhanced Grunt warped into view, answering call for help 13746 | -6/Zion | Enhanced Grunt warped into view, answering call for help 13787 | -6/Zion | Found Prototype Special Weapon 13787 | -6/Zion | Identified RU-N14's Throwing Claymores 13855 | -6/Zion | Entered Deep Caves 13855 | -6/Deep Caves | Accompanied by 2 allies 13957 | -6/Deep Caves | Attacked by Z-Imprinter 13971 | -6/Deep Caves | Destroyed Z-Imprinter 14023 | -6/Deep Caves | Found Prototype Protection 14023 | -6/Deep Caves | Identified Zio. Weapon Casing 14028 | -6/Deep Caves | Found Prototype Device 14028 | -6/Deep Caves | Identified Zio. Metafield Generator 14089 | -6/Deep Caves | Z-Facility disabled 14148 | -6/Deep Caves | Found Zio. Weapon Casing 14211 | -6/Deep Caves | Found Prototype Protection 14211 | -6/Deep Caves | Identified Zio. Heavy Carapace 14221 | -6/Deep Caves | Found Zio. Weapon Casing 14309 | -6/Deep Caves | Build established: Scavenger-Mutant 14373 | -6/Deep Caves | Discovered new exit (range 11) 14493 | -6/Deep Caves | Spotted AG-80537 14524 | -6/Deep Caves | Destroyed AG-80537 14540 | -6/Deep Caves | Found GOLEM Unit 15585 | -6/Deep Caves | Spotted AG-44809 15621 | -6/Deep Caves | Destroyed AG-44809 15656 | -6/Deep Caves | Triggered Deep Caves wall 15656 | -6/Deep Caves | Spotted AS-93956 15657 | -6/Deep Caves | Exposed GOLEM chamber 15663 | -6/Deep Caves | Destroyed AS-93956 15679 | -6/Deep Caves | Spotted AS-61180 15703 | -6/Deep Caves | Destroyed AS-61180 15725 | -6/Deep Caves | Found GOLEM Unit 15740 | -6/Deep Caves | Destroyed 39 combat bots 15764 | -6/Deep Caves | Found GOLEM Unit 16523 | -6/Deep Caves | Build established: Golem 17189 | -6/Deep Caves | Found Prototype Ballistic Gun 17189 | -6/Deep Caves | Identified AWS/Gauss 17217 | -6/Deep Caves | Found GOLEM Unit 17223 | -6/Deep Caves | Found GOLEM Unit 17384 | -6/Deep Caves | Found Surveybot 24 Chip 17387 | -6/Deep Caves | Found Surveybot 24 Scanner 18516 | -6/Deep Caves | Found Zio. Weapon Casing 19363 | -6/Deep Caves | Entered Proximity Caves 19708 | -5/Proximity Caves | Attracted the attention of an 0b10 checkpoint 19808 | -5/Proximity Caves | Learned 8 Factory zone layouts 19854 | -5/Proximity Caves | Spotted B-75 Beast 19968 | -5/Proximity Caves | Destroyed B-75 Beast 19979 | -5/Proximity Caves | Discovered exit to Factory (range 11) 20782 | -5/Proximity Caves | Entered Factory 20782 | -5/Factory | Evolved 2 slots: Utility x2 20783 | -5/Factory | Identified exit to Upper Caves 20783 | -5/Factory | Identified exit to Extension 20785 | -5/Factory | Loaded intel: 27 terminal locations 21300 | -5/Factory | Fabricated Adv. Transmission Jammer (x2) 21382 | -5/Factory | First assault squad dispatched 21385 | -5/Factory | Destroyed 13 combat bots 21494 | -5/Factory | Garrison activated, responded to threat 21654 | -5/Factory | Build established: Hacker-Golem 22567 | -5/Factory | Discovered new exit (range 14) 22918 | -5/Factory | Entered Extension 22991 | -5/Extension | Rescued a captive Derelict 23077 | -5/Extension | Repaired Imp. Medium Armor Plating 23158 | -5/Extension | Rescued A7 23216 | -5/Extension | Rescued a captive Derelict 23217 | -5/Extension | Rescued a captive Derelict 23218 | -5/Extension | First assault squad dispatched 23233 | -5/Extension | Energy Cycler disabled 23235 | -5/Extension | Rescued a captive Derelict 23237 | -5/Extension | Rescued a captive Derelict 23366 | -5/Extension | Build established: Scavenger-Golem 23571 | -5/Extension | Spotted B-75 Beast 23585 | -5/Extension | Allies destroyed B-75 Beast 23632 | -5/Extension | Spotted B-75 Beast 23648 | -5/Extension | Destroyed B-75 Beast 23664 | -5/Extension | Discovered new exit (range 15) 23857 | -5/Extension | Discovered new exit (range 16) 23859 | -5/Extension | Discovered new exit (range 15) 24006 | -5/Extension | Entered Cetus 24006 | -5/Cetus | Accompanied by 1 ally (A7) 24007 | -5/Cetus | Identified exit to Factory 24011 | -5/Cetus | Acquired a Cetus Manufacturing Module code from A7 24035 | -5/Cetus | Spotted Cetus Guard 24035 | -5/Cetus | Spotted Cetus Guard 24039 | -5/Cetus | Spotted Cetus Guard 24042 | -5/Cetus | Allies destroyed Cetus Guard 24042 | -5/Cetus | Spotted Cetus Guard 24047 | -5/Cetus | Destroyed Cetus Guard 24056 | -5/Cetus | Allies destroyed Cetus Guard 24067 | -5/Cetus | Destroyed Cetus Guard 24186 | -5/Cetus | Started Cetus Manufacturing Module 24211 | -5/Cetus | Manufactured an Enhanced Grunt 24211 | -5/Cetus | Discovered new exit (range 15) 24236 | -5/Cetus | Manufactured an Enhanced Grunt 24261 | -5/Cetus | Manufactured an Enhanced Grunt 24286 | -5/Cetus | Manufactured an Enhanced Grunt 24311 | -5/Cetus | Manufactured an Enhanced Grunt 24384 | -5/Cetus | Spotted Cetus Guard 24384 | -5/Cetus | Spotted Cetus Guard 24388 | -5/Cetus | Spotted Cetus Guard 24389 | -5/Cetus | Spotted Cetus Guard 24391 | -5/Cetus | Allies destroyed Cetus Guard 24395 | -5/Cetus | Allies destroyed Cetus Guard 24399 | -5/Cetus | Destroyed Cetus Guard 24401 | -5/Cetus | Allies destroyed Cetus Guard 24424 | -5/Cetus | Met Revision 17 24457 | -5/Cetus | Murdered A7 24469 | -5/Cetus | Extracted ID and sensor layout for unrecognized location from A7's data core 24586 | -5/Cetus | Entered Archives 24586 | -5/Archives | Accompanied by 5 allies 24699 | -5/Archives | Build established: Commander-Golem 24749 | -5/Archives | Discovered exit to Factory (range 15) 25652 | -5/Archives | Discovered new exit (range 16) 25693 | -5/Archives | Discovered new exit (range 16) 26044 | -5/Archives | Entered Hub_04(d) 26044 | -5/Hub_04(d) | Accompanied by 5 allies 26320 | -5/Hub_04(d) | Discovered exit to Factory (range 7) 26400 | -5/Hub_04(d) | Found Prototype Device 26400 | -5/Hub_04(d) | Identified Exp. Thermal Shield 26567 | -5/Hub_04(d) | Discovered exit to Factory (range 15) 26585 | -5/Hub_04(d) | Spotted B-75 Beast 26699 | -5/Hub_04(d) | Build established: Scavenger-Golem 26780 | -5/Hub_04(d) | Lost 4 allies 26791 | -5/Hub_04(d) | Discovered exit to Factory (range 15) 27294 | -5/Hub_04(d) | Destroyed B-75 Beast 27380 | -5/Hub_04(d) | Network Hub disabled 27405 | -5/Hub_04(d) | Spotted Lightning 27409 | -5/Hub_04(d) | Spotted Lightning 27410 | -5/Hub_04(d) | Spotted Lightning 27421 | -5/Hub_04(d) | Destroyed Lightning 27430 | -5/Hub_04(d) | Destroyed Lightning 27446 | -5/Hub_04(d) | Destroyed Lightning 27474 | -5/Hub_04(d) | Found Prototype Device 27474 | -5/Hub_04(d) | Identified Exp. Phase Shifter 27480 | -5/Hub_04(d) | Found Prototype Device 27480 | -5/Hub_04(d) | Identified Exp. EM Disruption Field 27559 | -5/Hub_04(d) | Spotted Lightning 27578 | -5/Hub_04(d) | System corruption reached 10% 27586 | -5/Hub_04(d) | Spotted Lightning 27591 | -5/Hub_04(d) | Spotted Lightning 27625 | -5/Hub_04(d) | Destroyed Lightning 27631 | -5/Hub_04(d) | Destroyed Lightning 27661 | -5/Hub_04(d) | Destroyed 9 combat bots 27676 | -5/Hub_04(d) | Destroyed Lightning 27768 | -5/Hub_04(d) | Discovered exit to Factory (range 4) 27812 | -5/Hub_04(d) | Network Hub disabled 27844 | -5/Hub_04(d) | First assault squad dispatched 27860 | -5/Hub_04(d) | Incoming assault squad redirected 28233 | -5/Hub_04(d) | Garrison activated, responded to threat 28247 | -5/Hub_04(d) | Build established: Golem 28255 | -5/Hub_04(d) | Garrison activated, responded to threat 28280 | -5/Hub_04(d) | Destroyed 10 combat bots 28381 | -5/Hub_04(d) | Entered Factory 28381 | -4/Factory | Evolved 2 slots: Power x1, Utility x1 28631 | -4/Factory | First assault squad dispatched 28649 | -4/Factory | Incoming assault squad redirected 28675 | -4/Factory | Build established: Scavenger-Golem 29166 | -4/Factory | Destroyed 7 combat bots 29204 | -4/Factory | Spotted B-86 Titan 29240 | -4/Factory | Destroyed B-86 Titan 29606 | -4/Factory | Discovered new exit (range 15) 29621 | -4/Factory | Identified exit to Upper Caves 29621 | -4/Factory | Identified exit to Armory 29842 | -4/Factory | Destroyed 9 combat bots 30035 | -4/Factory | Entered Upper Caves 30036 | -4/Upper Caves | Identified exit to Upper Caves 30350 | -4/Upper Caves | Found DCF Scrap (12 items) 30505 | -4/Upper Caves | Spotted B-86 Titan 30519 | -4/Upper Caves | Destroyed B-86 Titan 30558 | -4/Upper Caves | Learned Research emergency access door positions 30760 | -4/Upper Caves | Entered another Upper Caves area 30964 | -4/Upper Caves | Spotted B-86 Titan 30991 | -4/Upper Caves | Destroyed B-86 Titan 31123 | -4/Upper Caves | Learned location of Quarantine (-2) 31413 | -4/Upper Caves | Attracted the attention of an 0b10 checkpoint 31477 | -4/Upper Caves | Found DCF Scrap (17 items) 31895 | -4/Upper Caves | Build established: Hacker-Golem 31975 | -4/Upper Caves | Discovered new exit (range 6) 31980 | -4/Upper Caves | Learned Research garrison access intel 32058 | -4/Upper Caves | Encountered a Warlord checkpoint 32172 | -4/Upper Caves | Entered Warlord 32248 | -4/Warlord | System corruption cleaned by Quarantine Array 32742 | -4/Warlord | Met Warlord 32764 | -4/Warlord | Opened Warlord's prototype stash 32767 | -4/Warlord | Warlord's base attacked by MAIN.C 32771 | -4/Warlord | Found Prototype Device 32771 | -4/Warlord | Identified System Purifier 32776 | -4/Warlord | Found Prototype Processor 32776 | -4/Warlord | Identified Spectral Analyzer 32902 | -4/Warlord | Learned Factory fabricator intel 32902 | -4/Warlord | Learned Factory recycling unit intel 32902 | -4/Warlord | Learned Armory terminal intel 32902 | -4/Warlord | Learned Research fabricator intel 32904 | -4/Warlord | Learned 4 Research zone layouts 32904 | -4/Warlord | Learned 4 Command zone layouts 32909 | -4/Warlord | Learned Quarantine trap positions 33117 | -4/Warlord | Warlord forces counterattacked 33294 | -4/Warlord | Spotted Striker 33313 | -4/Warlord | Discovered new exit (range 22) 33320 | -4/Warlord | System corruption reached 10% 33324 | -4/Warlord | Destroyed Striker 33328 | -4/Warlord | Lost 9 allies 33345 | -4/Warlord | Destroyed 11 combat bots 33350 | -4/Warlord | Lost 3 parts (2u1w) 33367 | -4/Warlord | Spotted Executioner 33383 | -4/Warlord | Entered Proximity Caves 33675 | -3/Proximity Caves | Build established: Scavenger-Golem 34571 | -3/Proximity Caves | Found DCF Scrap (15 items) 34803 | -3/Proximity Caves | Attracted the attention of an 0b10 checkpoint 34875 | -3/Proximity Caves | Discovered new exit (range 8) 35574 | -3/Proximity Caves | Entered Research 35574 | -3/Research | Evolved 2 slots: Propulsion x2 35578 | -3/Research | Loaded intel: 4 fabricator locations 35579 | -3/Research | Loaded intel: 4 garrison access locations 35626 | -3/Research | Fabricated Adv. Heavy Treads (x1) 35676 | -3/Research | Identified exit to Testing 35774 | -3/Research | Revision forces began assault on 0b10 35779 | -3/Research | Met up with Revision 17++ 36186 | -3/Research | Found System Purifier 36250 | -3/Research | Build established: Hacker-Golem 36267 | -3/Research | Repaired Imp. Utility Shielding 36274 | -3/Research | Research terminal network offline 36368 | -3/Research | Entered Testing 36415 | -3/Testing | Identified exit to Research 36922 | -3/Testing | Found Prototype Ballistic Cannon 37023 | -3/Testing | Found Prototype Ballistic Gun 37120 | -3/Testing | Build established: Hacker-Mutant 37165 | -3/Testing | Spotted PL-3DZSBHHOP7 37233 | -3/Testing | Destroyed PL-3DZSBHHOP7 37254 | -3/Testing | Found Prototype Device 37254 | -3/Testing | Identified Femtoactuators 37337 | -3/Testing | Found Prototype Ballistic Cannon 37566 | -3/Testing | Protovariant out of control (PG-MTBDID9FLB) 37566 | -3/Testing | Unleashed a protovariant (PG-MTBDID9FLB) 37678 | -3/Testing | Identified Hyp. Multirail 37862 | -3/Testing | Spotted Striker 37862 | -3/Testing | Spotted Striker 38361 | -3/Testing | Destroyed 8 combat bots 38368 | -3/Testing | First assault squad dispatched 38486 | -3/Testing | Found Prototype Device 38486 | -3/Testing | Identified Exp. Hardlight Generator 38528 | -3/Testing | Found Prototype Launcher 38528 | -3/Testing | Identified Containment Facilitator 38537 | -3/Testing | Identified Perforator 38561 | -3/Testing | Identified Omega Cannon 38920 | -3/Testing | Found Prototype Energy Cannon 38922 | -3/Testing | Identified Potential Cannon 39279 | -3/Testing | Found Prototype Energy Cannon 39307 | -3/Testing | Identified Disintegrator 39395 | -3/Testing | Found Portable AFG 39752 | -3/Testing | Entered Research 39752 | -2/Research | Warlord forces began assault on 0b10 39752 | -2/Research | Evolved 2 slots: Utility x2 39862 | -2/Research | Research machine network offline 40033 | -2/Research | Borebot progress halted 40052 | -2/Research | Spotted B-90 Cyclops 40119 | -2/Research | Destroyed B-90 Cyclops 40378 | -2/Research | Borebot progress halted 40562 | -2/Research | Found Prototype Processor 40562 | -2/Research | Identified Exp. Core Analyzer 40596 | -2/Research | Spotted Executioner 40674 | -2/Research | Found Prototype Processor 40674 | -2/Research | Identified Exp. Melee Analysis Suite 40687 | -2/Research | Found Adv. Kinecellerator 40780 | -2/Research | Spotted Executioner 40793 | -2/Research | Destroyed Executioner 40846 | -2/Research | Discovered new exit (range 10) 40855 | -2/Research | Discovered new exit (range 15) 40927 | -2/Research | Identified exit to Access 40982 | -2/Research | Found Prototype Device 40982 | -2/Research | Identified Exp. Shield Generator 40990 | -2/Research | Found Exp. Shield Generator 41100 | -2/Research | Spotted B-90 Cyclops 41147 | -2/Research | Warlord destroyed during the assault 41357 | -2/Research | Crushed by falling debris 41358 | -2/Research | System corruption reached 10% 41388 | -2/Research | Lost 3 parts (3u) 41549 | -2/Research | Found Prototype Device 41549 | -2/Research | Identified Exp. ECM Suite 41650 | -2/Research | Build established: Scavenger-Mutant 41691 | -2/Research | Discovered exit to Access (range 6) 42113 | -2/Research | Spotted Executioner 42118 | -2/Research | Destroyed Executioner 42145 | -2/Research | Found Exp. Core Analyzer 42170 | -2/Research | Spotted Striker 42176 | -2/Research | Destroyed Striker 42178 | -2/Research | Spotted Striker 42188 | -2/Research | Destroyed Striker 42204 | -2/Research | Spotted Striker 42208 | -2/Research | Destroyed Striker 42244 | -2/Research | Destroyed 12 combat bots 42360 | -2/Research | Discovered new exit (range 5) 42368 | -2/Research | Entered Quarantine 42369 | -2/Quarantine | Loaded intel: 26 trap records 42437 | -2/Quarantine | Found Prototype Device 42437 | -2/Quarantine | Identified Exp. Shock Absorption System 42456 | -2/Quarantine | Garrison activated, responded to threat 42467 | -2/Quarantine | Found Alien Artifact 42467 | -2/Quarantine | Identified Core Reset Matrix 42467 | -2/Quarantine | Used Core Reset Matrix 42471 | -2/Quarantine | Detected hypermatrix surge 42471 | -2/Quarantine | Sensed 13 artifacts in vicinity 42618 | -2/Quarantine | First assault squad dispatched 42722 | -2/Quarantine | Found Sigix Broadsword 42792 | -2/Quarantine | Found Core Stripper 42925 | -2/Quarantine | High security lockdown imminent 42961 | -2/Quarantine | Discovered exit to Access (range 5) 43005 | -2/Quarantine | High security lockdown engaged 43042 | -2/Quarantine | Spotted Fortress 43051 | -2/Quarantine | Destroyed Fortress 43056 | -2/Quarantine | Found Prototype Protection 43056 | -2/Quarantine | Identified Centrium Heavy Armor Plating 43108 | -2/Quarantine | Destroyed 13 combat bots 43142 | -2/Quarantine | Lost 4 parts (4u) 43155 | -2/Quarantine | Found Prototype Reactor 43155 | -2/Quarantine | Identified Vortex Chain Reactor 43163 | -2/Quarantine | Scanned by Researcher 43165 | -2/Quarantine | Spotted Investigator 43165 | -2/Quarantine | Spotted Striker 43165 | -2/Quarantine | Spotted Striker 43171 | -2/Quarantine | Destroyed 7 combat bots 43193 | -2/Quarantine | Destroyed Investigator 43196 | -2/Quarantine | Destroyed Striker 43196 | -2/Quarantine | Destroyed Striker 43224 | -2/Quarantine | Found Vortex Chain Reactor 43237 | -2/Quarantine | Destroyed 13 combat bots 43265 | -2/Quarantine | Found Unknown Protection 43265 | -2/Quarantine | Identified Hvy. Insulated Plating 43269 | -2/Quarantine | Lost 6 parts (3p1n2u) 43377 | -2/Quarantine | Discovered new exit (range 6) 43385 | -2/Quarantine | Entered Section 7 43386 | -2/Section 7 | Sensed 19 artifacts in vicinity 43469 | -2/Section 7 | Spotted S7 Guard 43575 | -2/Section 7 | Scanned by Researcher 43719 | -2/Section 7 | Found Integrated Reactor 43719 | -2/Section 7 | Installed Integrated Reactor, increased core energy generation (+10) 43926 | -2/Section 7 | First assault squad dispatched 43942 | -2/Section 7 | Incoming assault squad redirected 43976 | -2/Section 7 | Spotted S7 Guard 44038 | -2/Section 7 | Spotted B-90 Cyclops 44061 | -2/Section 7 | Intercept squad dispatched 44061 | -2/Section 7 | Core integrity fell below 50% 44065 | -2/Section 7 | Spotted Tracker 44066 | -2/Section 7 | Spotted Tracker 44077 | -2/Section 7 | Spotted Combat Programmer 44078 | -2/Section 7 | Destroyed Tracker 44082 | -2/Section 7 | Destroyed Combat Programmer 44102 | -2/Section 7 | Spotted Combat Programmer 44113 | -2/Section 7 | Destroyed Combat Programmer 44127 | -2/Section 7 | High security lockdown imminent 44134 | -2/Section 7 | Lost 8 parts (2p3n1u2w) 44163 | -2/Section 7 | Core integrity fell below 20% 44179 | -2/Section 7 | Destroyed by H-81 Overseer with Heavy Linear Accelerator Last Messages --------------- 44156_ G-73 Enforcer suffers critical hit (Destroy). 44156_ G-73 Enforcer destroyed. 44156_ HV Slug penetrates Earth. 44156_ HV Slug penetrates Wall. 44156_ HV Slug penetrates Earth. 44156_ HV Slug penetrates Wall. 44159_ Com. Wheel destroyed. 44161_ Dropped Huge Storage Unit. 44162_ Discarded Exp. Energy Well. 44162_ Acquired 11 matter. 44163_ Acquired 84 matter. 44164_ Acquired 85 matter. 44168_ Acquired 16 matter. 44168_ Acquired 22 matter. 44173_ Knocked back. 44177_ ALERT: Machine network offline. 44177_ Knocked back. 44179_ Penetrated by Slug. [Achievement: Rambo] Map ----- +----------------------------------------------------+ | | | | | ?????????????????????????????????????????????????? | | ?????????????????????????????????????????????????? | | ?????????????????????????????????????????????????? | | ?????????????????????????????????????????????????? | | ?????????????????????????????????????????????????? | | ?????????????????????????????????????????????????? | | ?????????????????????????????????????????????????? | | ?????????????????????????????????????????????????? | | ?????????????????????????????????????????????????? | | ?????????????????????????????????????????????????? | | ?????????????????????????????????????????????????? | | ?????????????????????????????????????????????????? | | ?????????????????????????????????????????????????? | | ?????????????????????????????????????????????????? | | ?????????????????????????????????????????????????? | | ?????????????????????????????????????????????????? | | ?????????????????????????????????????????????????? | | ??? ??????????????##????????????????????????????? | | ??? ??????????????# ???????????????????????????? | | ?? ??????????????# ???????????????????????????? | | #? #?????????????# ???????????????????????????? | | #?????????????? ???????????????????????????? | | #?###?????######+########???????????????????? | | #?= ; H @s #???????????????????? | | """ ## ;k = """ #???????????????????? | | " " ## """ """ #A """%#???????????????????? | | """ ## "?" """ #A[! """ #???????????????????? | | ## """ """ #[[! #???????????????????? | | """ ## #R! #???????????????????? | | " " ## """ " # * #???????????????????? | | """ ## " " " % #???????????????????? | | ## """ ! ;##+#;####???????????????????? | | ## # # ###??????????????????????? | | ## # #???????A????????????????? | | ## [ !=* " #????????????????????????? | | # #*%##%!*# " #????????????????????????? | | $### !%[!*!# "+#######??????????????????? | | $$%$| !%==== #??????????????????? | | $%$! =![ A=# %"" """ #????????????!?????? | | %$%$ |[ ! / " """ #??????????????????? | | %= ]!!!* # "" """ #??????????????????? | | " # # ![! # #??????????????????? | | "" # # #!! ##############??????????????????? | | ### ##??????????????????????????????? | | ## #?#### # #???????????????????????????????? | | ?#####????### #???????????????????????????????? | | ????????????# #???????????????????????????????? | | ????????????# #???????????????????????????????? | +----------------------------------------------------+ Best States ------------- Heat Dissipation 99 Energy Generation 79 Energy Capacity 2450 Matter Stores 300 Matter Capacity 300 Sight Range 24 Terrain Scan Density 10 ECM Strength 3 Jamming Range 16 Additional Mass Support 20 EM Shielding 4 Corruption Containment 12 Corruption Block 20 Armor Coverage 1650 Resistance: KI 15 Resistance: TH 30 Resistance: EX 75 Resistance: EM 75 Resistance: I 15 Resistance: S 15 Resistance: P 15 Core Shielding 30 Utility Shielding 66 Weapon Shielding 100 Phase Shifting 20 Evasion (%) 69 Targeting Accuracy 8 Core Analysis 8 Armor Integrity Analysis 40 Recoil Reduction 6 Energy Filtering 50 Kinecelleration 50 Offensive Hacking 41 Defensive Hacking 22 Authchip Count 1 Item Schematics ----------------- Cld. Nuclear Pulse Thruster | -2/Section 7 | Archive Exp. Core Analyzer | -2/Section 7 | Archive Imp. Matter Neutralizer | -2/Section 7 | Archive Cld. Proton Cannon | -2/Section 7 | Archive Exp. Matter Compressor | -2/Section 7 | Archive Hvy. Neutron Cannon | -2/Section 7 | Archive Ionic Axe | -2/Section 7 | Archive Robot Schematics ------------------ T-07 Excavator | -2/Section 7 | Archive K-01 Serf | -2/Section 7 | Archive Fabricated ------------ Cld. VTOL Module | x1 | -6/Factory | Authchip Adv. Transmission Jammer | x2 | -5/Factory | Authchip Adv. Heavy Treads | x1 | -3/Research Alien Tech Used ----------------- Core Expander Core Reset Matrix Core Stripper Sigix Broadsword Integrated Reactor Achievements -------------- Rambo Rampage Sunderer Challenges ------------ None Game ------ Seed GhostInsulatedBooster Manual? 0 Play Time 08:04:34 Cumulative 302.0 hours Start 2024.09.04 @ 16:53:52 End 2024.09.06 @ 04:09:00 Sessions 15 Manual Loads 0 Difficulty Rogue Special Mode None Game No. 220 Rogue 215 Adventurer 5 Explorer 0 Win Type - Total 7 Types 4/0/3/0/0/0/0/0/0 Lore% 66 Gallery% 84 Achievement% 69 Wizard Run 0 Options --------- Layout 2 ASCII 0 Keyboard 0 Movement Mouse Keybinds 0 Fullscreen 2 Font 24/Smallcaps Map View 50x44 Zoom Use 0% Tactical HUD 1 Map Filters NONE Filters NONE Steam 1 RUN: 89ae18e9-1462-4e23-b4e3-1cc32798892f